Workbook

Sheet Hourly
A1: Biogas (kWh) | B1: Natural Gas (kWh) | C1: Biomass (kWh) | D1: Wind Turbine (kWh) | E1: Total Generation (kWh) | F1: Demand (kWh) | G1: Residual (kWh) | H1: Positive residual (kWh) | I1: Demand(kWh) | M1: Storage Characteristics | N1: Storage (kWh) | O1: Imports (kWh) | Q1: Exports (kWh)
L2: Capacity (kWh) | M2: 200000
A3: =M$13 -> 872.48 | B3: =M$14 -> 0 | C3: =M$15 -> 18750 | D3: 500 | E3: =A3+C3+((D3/2)*M$12) -> 20622.48 | F3: =I3*1 -> 20586.33141 | G3: =E3-F3 -> 36.14858809 | H3: =IF(G3<0,ABS(G3),0) -> 0 | I3: 20586.33141 | L3: Round-trip efficiency (1=100%) | M3: 0.8 | N3: 32.53372928 | O3: 0 | P3: =IF(O3>0,0,1) -> 1 | Q3: 0
A4: =M$13 -> 872.48 | B4: =M$14 -> 0 | C4: =M$15 -> 18750 | D4: 1070 | E4: =A4+C4+((D4/2)*M$12) -> 21762.48 | F4: =I4*1 -> 20653.2755 | G4: =E4-F4 -> 1109.204503 | H4: =IF(G4<0,ABS(G4),0) -> 0 | I4: 20653.2755 | L4: Self discharge (hours) (1=100%) | M4: 0.001 | N4: 1030.785248 | O4: 0 | P4: =IF(O4>0,0,1) -> 1 | Q4: 0
A5: 872.48 | B5: 0 | C5: 18750 | D5: 680 | E5: 20982.48 | F5: 20601.27395 | G5: 381.2060505 | H5: 0 | I5: 20601.27395 | L5: Charging rate (kW/hour) | M5: 3000 | N5: 1372.839909 | O5: 0 | P5: 1 | Q5: 0
A6: 872.48 | B6: 0 | C6: 18750 | D6: 700 | E6: 21022.48 | F6: 21101.03458 | G6: -78.55458185 | H6: 78.55458185 | I6: 21101.03458 | L6: Discharging rate (kW/hour) | N6: 1285.057029 | O6: 0 | P6: 1 | Q6: 0
A7: 872.48 | B7: 0 | C7: 18750 | D7: 450 | E7: 20522.48 | F7: 21314.31945 | G7: -791.8394468 | H7: 791.8394468 | I7: 21314.31945 | N7: 412.7485801 | O7: 0 | P7: 1 | Q7: 0
A8: 872.48 | B8: 0 | C8: 18750 | D8: 270 | E8: 20162.48 | F8: 20643.44293 | G8: -480.9629258 | H8: 480.9629258 | I8: 20643.44293 | N8: 0 | O8: 68.62709427 | P8: 0 | Q8: 0
A9: 872.48 | B9: 0 | C9: 18750 | D9: 450 | E9: 20522.48 | F9: 20822.64033 | G9: -300.1603339 | H9: 300.1603339 | I9: 20822.64033 | N9: 0 | O9: 300.1603339 | P9: 0 | Q9: 0
A10: 872.48 | B10: 0 | C10: 18750 | D10: 460 | E10: 20542.48 | F10: 21219.24268 | G10: -676.7626849 | H10: 676.7626849 | I10: 21219.24268 | N10: 0 | O10: 676.7626849 | P10: 0 | Q10: 0
A11: 872.48 | B11: 0 | C11: 18750 | D11: 520 | E11: 20662.48 | F11: 21365.47122 | G11: -702.991217 | H11: 702.991217 | I11: 21365.47122 | M11: On site generation characteristics | N11: 0 | O11: 702.991217 | P11: 0 | Q11: 0
A12: 872.48 | B12: 0 | C12: 18750 | D12: 480 | E12: 20582.48 | F12: 21485.38447 | G12: -902.9044677 | H12: 902.9044677 | I12: 21485.38447 | L12: Number of WT | M12: 4 | N12: 0 | O12: 902.9044677 | P12: 0 | Q12: 0
A13: 872.48 | B13: 0 | C13: 18750 | D13: 350 | E13: 20322.48 | F13: 21641.2441 | G13: -1318.764101 | H13: 1318.764101 | I13: 21641.2441 | L13: Hourly output Biogas (kWh) | M13: 872.48 | N13: 0 | O13: 1318.764101 | P13: 0 | Q13: 0
A14: 872.48 | B14: 0 | C14: 18750 | D14: 800 | E14: 21222.48 | F14: 21572.30997 | G14: -349.8299663 | H14: 349.8299663 | I14: 21572.30997 | L14: Hourly output Natural Gas (kWh) | M14: 0 | N14: 0 | O14: 349.8299663 | P14: 0 | Q14: 0
A15: 872.48 | B15: 0 | C15: 18750 | D15: 1570 | E15: 22762.48 | F15: 21580.6275 | G15: 1181.852504 | H15: 0 | I15: 21580.6275 | L15: Hourly output Biomass (kWh) | M15: 18750 | N15: 1063.667254 | O15: 0 | P15: 1 | Q15: 0
A16: 872.48 | B16: 0 | C16: 18750 | D16: 990 | E16: 21602.48 | F16: 21759.7923 | G16: -157.3123047 | H16: 157.3123047 | I16: 21759.7923 | L16: Hourly output PV (kWh) | M16: 0 | N16: 889.5600516 | O16: 0 | P16: 1 | Q16: 0
A17: 872.48 | B17: 0 | C17: 18750 | D17: 1760 | E17: 23142.48 | F17: 21795.20251 | G17: 1347.277489 | H17: 0 | I17: 21795.20251 | N17: 2101.220232 | O17: 0 | P17: 1 | Q17: 0
A18: 872.48 | B18: 0 | C18: 18750 | D18: 2030 | E18: 23682.48 | F18: 21636.84026 | G18: 2045.639738 | H18: 0 | I18: 21636.84026 | N18: 3940.194776 | O18: 0 | P18: 1 | Q18: 0
A19: 872.48 | B19: 0 | C19: 18750 | D19: 1820 | E19: 23262.48 | F19: 20907.00085 | G19: 2355.479154 | H19: 0 | I19: 20907.00085 | N19: 6056.18582 | O19: 0 | P19: 1 | Q19: 0
A20: 872.48 | B20: 0 | C20: 18750 | D20: 1210 | E20: 22042.48 | F20: 21586.72385 | G20: 455.7561549 | H20: 0 | I20: 21586.72385 | N20: 6460.310173 | O20: 0 | P20: 1 | Q20: 0
A21: 872.48 | B21: 0 | C21: 18750 | D21: 560 | E21: 20742.48 | F21: 21738.85719 | G21: -996.3771905 | H21: 996.3771905 | I21: 21738.85719 | N21: 5357.834953 | O21: 0 | P21: 1 | Q21: 0
A22: 872.48 | B22: 0 | C22: 18750 | D22: 230 | E22: 20082.48 | F22: 21017.78521 | G22: -935.30521 | H22: 935.30521 | I22: 21017.78521 | N22: 4323.641387 | O22: 0 | P22: 1 | Q22: 0
A23: 872.48 | B23: 0 | C23: 18750 | D23: 280 | E23: 20182.48 | F23: 21057.22791 | G23: -874.7479147 | H23: 874.7479147 | I23: 21057.22791 | N23: 3357.09504 | O23: 0 | P23: 1 | Q23: 0
A24: 872.48 | B24: 0 | C24: 18750 | D24: 460 | E24: 20542.48 | F24: 21675.66185 | G24: -1133.181848 | H24: 1133.181848 | I24: 21675.66185 | L24: % Deficit Supplied Storage | M24: =((H8763-O8763)/H8763)*100 -> 41.97547055 | N24: 2107.237912 | O24: 0 | P24: 1 | Q24: 0
A25: 872.48 | B25: 0 | C25: 18750 | D25: 810 | E25: 21242.48 | F25: 20891.46937 | G25: 351.0106285 | H25: 0 | I25: 20891.46937 | L25: % Hours the factory is Autonomous | M25: =(SUM(P3:P8762)/8761)*100 -> 81.41764639 | N25: 2421.04024 | O25: 0 | P25: 1 | Q25: 0
A26: 872.48 | B26: 0 | C26: 18750 | D26: 2020 | E26: 23662.48 | F26: 20573.2014 | G26: 3089.278605 | H26: 0 | I26: 20573.2014 | L26: % Surplus Exported | M26: =(Q8763/G8763)*100 -> 26.88628519 | N26: 5418.6192 | O26: 0 | P26: 1 | Q26: 0
A27: 872.48 | B27: 0 | C27: 18750 | D27: 2540 | E27: 24702.48 | F27: 20576.56878 | G27: 4125.91122 | H27: 0 | I27: 20576.56878 | L27: % CO2 emissions from the imports | M27: =(1-((H8763-O8763)/H8763))*100 -> 58.02452945 | N27: 8413.20058 | O27: 0 | P27: 1 | Q27: 792.5778871
A28: 872.48 | B28: 0 | C28: 18750 | D28: 1490 | E28: 22602.48 | F28: 20341.85111 | G28: 2260.62889 | H28: 0 | I28: 20341.85111 | L28: Total Exports (£) | M28: =Q8763*0.05365 -> 166080.2414 | N28: 10439.35338 | O28: 0 | P28: 1 | Q28: 0
A29: 872.48 | B29: 0 | C29: 18750 | D29: 1370 | E29: 22362.48 | F29: 20257.09311 | G29: 2105.386888 | H29: 0 | I29: 20257.09311 | L29: Total Imports (£) | M29: =-O8763*0.082 -> -567831.1188 | N29: 12323.76223 | O29: 0 | P29: 1 | Q29: 0
A30: 872.48 | B30: 0 | C30: 18750 | D30: 1220 | E30: 22062.48 | F30: 20430.86045 | G30: 1631.619552 | H30: 0 | I30: 20430.86045 | L30: Net Import/Export (£) | M30: =M28+M29 -> -401750.8774 | N30: 13779.89606 | O30: 0 | P30: 1 | Q30: 0
A31: 872.48 | B31: 0 | C31: 18750 | D31: 1250 | E31: 22122.48 | F31: 20269.46693 | G31: 1853.01307 | H31: 0 | I31: 20269.46693 | N31: 15433.82793 | O31: 0 | P31: 1 | Q31: 0
A32: 872.48 | B32: 0 | C32: 18750 | D32: 1590 | E32: 22802.48 | F32: 19861.41568 | G32: 2941.064325 | H32: 0 | I32: 19861.41568 | N32: 18418.3941 | O32: 0 | P32: 1 | Q32: 0
A33: 872.48 | B33: 0 | C33: 18750 | D33: 2050 | E33: 23722.48 | F33: 20674.50563 | G33: 3047.974369 | H33: 0 | I33: 20674.50563 | N33: 21399.97571 | O33: 0 | P33: 1 | Q33: 0
A34: 872.48 | B34: 0 | C34: 18750 | D34: 1760 | E34: 23142.48 | F34: 20866.19311 | G34: 2276.286889 | H34: 0 | I34: 20866.19311 | N34: 23427.23393 | O34: 0 | P34: 1 | Q34: 0
A35: 872.48 | B35: 0 | C35: 18750 | D35: 1600 | E35: 22822.48 | F35: 21218.0753 | G35: 1604.404699 | H35: 0 | I35: 21218.0753 | N35: 24847.77093 | O35: 0 | P35: 1 | Q35: 0
A36: 872.48 | B36: 0 | C36: 18750 | D36: 1540 | E36: 22702.48 | F36: 21020.78034 | G36: 1681.699665 | H36: 0 | I36: 21020.78034 | N36: 26336.45285 | O36: 0 | P36: 1 | Q36: 0
A37: 872.48 | B37: 0 | C37: 18750 | D37: 1700 | E37: 23022.48 | F37: 21242.55536 | G37: 1779.924644 | H37: 0 | I37: 21242.55536 | N37: 27912.04858 | O37: 0 | P37: 1 | Q37: 0
A38: 872.48 | B38: 0 | C38: 18750 | D38: 2040 | E38: 23702.48 | F38: 21938.86705 | G38: 1763.612953 | H38: 0 | I38: 21938.86705 | N38: 29471.38819 | O38: 0 | P38: 1 | Q38: 0
A39: 872.48 | B39: 0 | C39: 18750 | D39: 1750 | E39: 23122.48 | F39: 22314.17817 | G39: 808.3018317 | H39: 0 | I39: 22314.17817 | N39: 30169.38845 | O39: 0 | P39: 1 | Q39: 0
A40: 872.48 | B40: 0 | C40: 18750 | D40: 1790 | E40: 23202.48 | F40: 22120.347 | G40: 1082.132996 | H40: 0 | I40: 22120.347 | N40: 31113.13876 | O40: 0 | P40: 1 | Q40: 0
A41: 872.48 | B41: 0 | C41: 18750 | D41: 2230 | E41: 24082.48 | F41: 21949.42473 | G41: 2133.055268 | H41: 0 | I41: 21949.42473 | N41: 33001.77536 | O41: 0 | P41: 1 | Q41: 0
A42: 872.48 | B42: 0 | C42: 18750 | D42: 2240 | E42: 24102.48 | F42: 22144.2246 | G42: 1958.2554 | H42: 0 | I42: 22144.2246 | N42: 34731.20344 | O42: 0 | P42: 1 | Q42: 0
A43: 872.48 | B43: 0 | C43: 18750 | D43: 1370 | E43: 22362.48 | F43: 22000.23507 | G43: 362.2449278 | H43: 0 | I43: 22000.23507 | N43: 35022.49268 | O43: 0 | P43: 1 | Q43: 0
A44: 872.48 | B44: 0 | C44: 18750 | D44: 900 | E44: 21422.48 | F44: 24087.01035 | G44: -2664.530351 | H44: 2664.530351 | I44: 24087.01035 | N44: 32056.4868 | O44: 0 | P44: 1 | Q44: 0
A45: 872.48 | B45: 0 | C45: 18750 | D45: 730 | E45: 21082.48 | F45: 24038.20227 | G45: -2955.72227 | H45: 2955.72227 | I45: 24038.20227 | N45: 28773.13581 | O45: 0 | P45: 1 | Q45: 0
A46: 872.48 | B46: 0 | C46: 18750 | D46: 640 | E46: 20902.48 | F46: 24059.41893 | G46: -3156.938932 | H46: 3156.938932 | I46: 24059.41893 | N46: 25271.72985 | O46: 0 | P46: 1 | Q46: 0
A47: 872.48 | B47: 0 | C47: 18750 | D47: 470 | E47: 20562.48 | F47: 23804.50239 | G47: -3242.022391 | H47: 3242.022391 | I47: 23804.50239 | N47: 21680.23349 | O47: 0 | P47: 1 | Q47: 0
A48: 872.48 | B48: 0 | C48: 18750 | D48: 820 | E48: 21262.48 | F48: 22592.60249 | G48: -1330.122494 | H48: 1330.122494 | I48: 22592.60249 | N48: 20195.41852 | O48: 0 | P48: 1 | Q48: 0
A49: 872.48 | B49: 0 | C49: 18750 | D49: 1030 | E49: 21682.48 | F49: 20878.39434 | G49: 804.0856647 | H49: 0 | I49: 20878.39434 | N49: 20898.90019 | O49: 0 | P49: 1 | Q49: 0
A50: 872.48 | B50: 0 | C50: 18750 | D50: 2030 | E50: 23682.48 | F50: 21430.48408 | G50: 2251.995917 | H50: 0 | I50: 21430.48408 | N50: 22904.79762 | O50: 0 | P50: 1 | Q50: 0
A51: 872.48 | B51: 0 | C51: 18750 | D51: 1980 | E51: 23582.48 | F51: 22043.39402 | G51: 1539.085985 | H51: 0 | I51: 22043.39402 | N51: 24267.07021 | O51: 0 | P51: 1 | Q51: 0
A52: 872.48 | B52: 0 | C52: 18750 | D52: 1560 | E52: 22742.48 | F52: 22186.00617 | G52: 556.4738303 | H52: 0 | I52: 22186.00617 | N52: 24743.62959 | O52: 0 | P52: 1 | Q52: 0
A53: 872.48 | B53: 0 | C53: 18750 | D53: 1640 | E53: 22902.48 | F53: 22005.16125 | G53: 897.3187454 | H53: 0 | I53: 22005.16125 | N53: 25526.47283 | O53: 0 | P53: 1 | Q53: 0
A54: 872.48 | B54: 0 | C54: 18750 | D54: 2120 | E54: 23862.48 | F54: 21509.86709 | G54: 2352.612906 | H54: 0 | I54: 21509.86709 | N54: 27618.29797 | O54: 0 | P54: 1 | Q54: 0
A55: 872.48 | B55: 0 | C55: 18750 | D55: 1720 | E55: 23062.48 | F55: 22106.39694 | G55: 956.0830629 | H55: 0 | I55: 22106.39694 | N55: 28451.15443 | O55: 0 | P55: 1 | Q55: 0
A56: 872.48 | B56: 0 | C56: 18750 | D56: 2150 | E56: 23922.48 | F56: 22232.2864 | G56: 1690.193596 | H56: 0 | I56: 22232.2864 | N56: 29943.87751 | O56: 0 | P56: 1 | Q56: 0
A57: 872.48 | B57: 0 | C57: 18750 | D57: 1960 | E57: 23542.48 | F57: 22561.06849 | G57: 981.4115128 | H57: 0 | I57: 22561.06849 | N57: 30797.20399 | O57: 0 | P57: 1 | Q57: 0
A58: 872.48 | B58: 0 | C58: 18750 | D58: 2720 | E58: 25062.48 | F58: 24629.45607 | G58: 433.0239305 | H58: 0 | I58: 24629.45607 | N58: 31156.12833 | O58: 0 | P58: 1 | Q58: 0
A59: 872.48 | B59: 0 | C59: 18750 | D59: 2570 | E59: 24762.48 | F59: 18817.61169 | G59: 5944.868306 | H59: 0 | I59: 18817.61169 | N59: 34124.9722 | O59: 0 | P59: 1 | Q59: 2611.534973
A60: 872.48 | B60: 0 | C60: 18750 | D60: 2650 | E60: 24922.48 | F60: 18601.92575 | G60: 6320.554255 | H60: 0 | I60: 18601.92575 | N60: 37090.84723 | O60: 0 | P60: 1 | Q60: 2987.220922
A61: 872.48 | B61: 0 | C61: 18750 | D61: 2300 | E61: 24222.48 | F61: 16638.35974 | G61: 7584.120262 | H61: 0 | I61: 16638.35974 | N61: 40053.75638 | O61: 0 | P61: 1 | Q61: 4250.786929
A62: 872.48 | B62: 0 | C62: 18750 | D62: 2650 | E62: 24922.48 | F62: 18141.84765 | G62: 6780.63235 | H62: 0 | I62: 18141.84765 | N62: 43013.70262 | O62: 0 | P62: 1 | Q62: 3447.299017
A63: 872.48 | B63: 0 | C63: 18750 | D63: 2340 | E63: 24302.48 | F63: 19239.52695 | G63: 5062.953055 | H63: 0 | I63: 19239.52695 | N63: 45970.68892 | O63: 0 | P63: 1 | Q63: 1729.619721
A64: 872.48 | B64: 0 | C64: 18750 | D64: 2610 | E64: 24842.48 | F64: 18994.73543 | G64: 5847.74457 | H64: 0 | I64: 18994.73543 | N64: 48924.71823 | O64: 0 | P64: 1 | Q64: 2514.411237
A65: 872.48 | B65: 0 | C65: 18750 | D65: 2520 | E65: 24662.48 | F65: 17969.82532 | G65: 6692.654683 | H65: 0 | I65: 17969.82532 | N65: 51875.79351 | O65: 0 | P65: 1 | Q65: 3359.32135
A66: 872.48 | B66: 0 | C66: 18750 | D66: 2480 | E66: 24582.48 | F66: 16468.98493 | G66: 8113.495066 | H66: 0 | I66: 16468.98493 | N66: 54823.91772 | O66: 0 | P66: 1 | Q66: 4780.161733
A67: 872.48 | B67: 0 | C67: 18750 | D67: 2450 | E67: 24522.48 | F67: 16770.72303 | G67: 7751.756973 | H67: 0 | I67: 16770.72303 | N67: 57769.0938 | O67: 0 | P67: 1 | Q67: 4418.423639
A68: =M$13 -> 872.48 | B68: =M$14 -> 0 | C68: =M$15 -> 18750 | D68: 2470 | E68: =A68+C68+((D68/2)*M$12) -> 24562.48 | F68: =I68*1 -> 16901.79637 | G68: =E68-F68 -> 7660.683633 | H68: =IF(G68<0,ABS(G68),0) -> 0 | I68: 16901.79637 | N68: 60711.32471 | O68: 0 | P68: =IF(O68>0,0,1) -> 1 | Q68: 4327.3503
A69: 872.48 | B69: 0 | C69: 18750 | D69: 2490 | E69: 24602.48 | F69: 17167.16044 | G69: 7435.319563 | H69: 0 | I69: 17167.16044 | N69: 63650.61338 | O69: 0 | P69: 1 | Q69: 4101.98623
A70: 872.48 | B70: 0 | C70: 18750 | D70: 2410 | E70: 24442.48 | F70: 17042.34087 | G70: 7400.13913 | H70: 0 | I70: 17042.34087 | N70: 66586.96277 | O70: 0 | P70: 1 | Q70: 4066.805797
A71: 872.48 | B71: 0 | C71: 18750 | D71: 2620 | E71: 24862.48 | F71: 17365.12034 | G71: 7497.359657 | H71: 0 | I71: 17365.12034 | N71: 69520.37581 | O71: 0 | P71: 1 | Q71: 4164.026323
A72: 872.48 | B72: 0 | C72: 18750 | D72: 2490 | E72: 24602.48 | F72: 17656.58588 | G72: 6945.894118 | H72: 0 | I72: 17656.58588 | N72: 72450.85543 | O72: 0 | P72: 1 | Q72: 3612.560784
A73: 872.48 | B73: 0 | C73: 18750 | D73: 2380 | E73: 24382.48 | F73: 17511.22377 | G73: 6871.256228 | H73: 0 | I73: 17511.22377 | N73: 75378.40458 | O73: 0 | P73: 1 | Q73: 3537.922894
A74: 872.48 | B74: 0 | C74: 18750 | D74: 2460 | E74: 24542.48 | F74: 17281.08119 | G74: 7261.398811 | H74: 0 | I74: 17281.08119 | N74: 78303.02617 | O74: 0 | P74: 1 | Q74: 3928.065478
A75: 872.48 | B75: 0 | C75: 18750 | D75: 2570 | E75: 24762.48 | F75: 17137.69649 | G75: 7624.783514 | H75: 0 | I75: 17137.69649 | N75: 81224.72315 | O75: 0 | P75: 1 | Q75: 4291.450181
A76: 872.48 | B76: 0 | C76: 18750 | D76: 2400 | E76: 24422.48 | F76: 15822.85958 | G76: 8599.620418 | H76: 0 | I76: 15822.85958 | N76: 84143.49842 | O76: 0 | P76: 1 | Q76: 5266.287085
A77: 872.48 | B77: 0 | C77: 18750 | D77: 2500 | E77: 24622.48 | F77: 15600.01842 | G77: 9022.461577 | H77: 0 | I77: 15600.01842 | N77: 87059.35492 | O77: 0 | P77: 1 | Q77: 5689.128244
A78: 872.48 | B78: 0 | C78: 18750 | D78: 2520 | E78: 24662.48 | F78: 16534.99274 | G78: 8127.487264 | H78: 0 | I78: 16534.99274 | N78: 89972.29557 | O78: 0 | P78: 1 | Q78: 4794.153931
A79: 872.48 | B79: 0 | C79: 18750 | D79: 2390 | E79: 24402.48 | F79: 15836.52607 | G79: 8565.95393 | H79: 0 | I79: 15836.52607 | N79: 92882.32327 | O79: 0 | P79: 1 | Q79: 5232.620596
A80: 872.48 | B80: 0 | C80: 18750 | D80: 1510 | E80: 22642.48 | F80: 15968.9081 | G80: 6673.571898 | H80: 0 | I80: 15968.9081 | N80: 95789.44095 | O80: 0 | P80: 1 | Q80: 3340.238564
A81: 872.48 | B81: 0 | C81: 18750 | D81: 1000 | E81: 21622.48 | F81: 16369.40183 | G81: 5253.078172 | H81: 0 | I81: 16369.40183 | N81: 98693.65151 | O81: 0 | P81: 1 | Q81: 1919.744839
A82: 872.48 | B82: 0 | C82: 18750 | D82: 260 | E82: 20142.48 | F82: 17081.29866 | G82: 3061.181339 | H82: 0 | I82: 17081.29866 | N82: 101594.9579 | O82: 0 | P82: 1 | Q82: 0
A83: 872.48 | B83: 0 | C83: 18750 | D83: 400 | E83: 20422.48 | F83: 17708.39249 | G83: 2714.087512 | H83: 0 | I83: 17708.39249 | N83: 103936.0417 | O83: 0 | P83: 1 | Q83: 0
A84: 872.48 | B84: 0 | C84: 18750 | D84: 490 | E84: 20602.48 | F84: 17184.78917 | G84: 3417.690826 | H84: 0 | I84: 17184.78917 | N84: 106832.1056 | O84: 0 | P84: 1 | Q84: 84.35749314
A85: 872.48 | B85: 0 | C85: 18750 | D85: 1390 | E85: 22402.48 | F85: 17157.33789 | G85: 5245.142106 | H85: 0 | I85: 17157.33789 | N85: 109725.2735 | O85: 0 | P85: 1 | Q85: 1911.808773
A86: 872.48 | B86: 0 | C86: 18750 | D86: 1300 | E86: 22222.48 | F86: 17042.83089 | G86: 5179.649108 | H86: 0 | I86: 17042.83089 | N86: 112615.5482 | O86: 0 | P86: 1 | Q86: 1846.315774
A87: 872.48 | B87: 0 | C87: 18750 | D87: 530 | E87: 20682.48 | F87: 16799.49186 | G87: 3882.988136 | H87: 0 | I87: 16799.49186 | N87: 115502.9327 | O87: 0 | P87: 1 | Q87: 549.6548024
A88: 872.48 | B88: 0 | C88: 18750 | D88: 420 | E88: 20462.48 | F88: 16456.30497 | G88: 4006.175027 | H88: 0 | I88: 16456.30497 | N88: 118387.4298 | O88: 0 | P88: 1 | Q88: 672.8416937
A89: 872.48 | B89: 0 | C89: 18750 | D89: 60 | E89: 19742.48 | F89: 17213.03449 | G89: 2529.445512 | H89: 0 | I89: 17213.03449 | N89: 120545.5433 | O89: 0 | P89: 1 | Q89: 0
A90: 872.48 | B90: 0 | C90: 18750 | D90: 80 | E90: 19782.48 | F90: 17165.32798 | G90: 2617.152023 | H90: 0 | I90: 17165.32798 | N90: 122780.4346 | O90: 0 | P90: 1 | Q90: 0
A91: 872.48 | B91: 0 | C91: 18750 | D91: 300 | E91: 20222.48 | F91: 16695.37762 | G91: 3527.102377 | H91: 0 | I91: 16695.37762 | N91: 125657.6541 | O91: 0 | P91: 1 | Q91: 193.7690433
A92: 872.48 | B92: 0 | C92: 18750 | D92: 470 | E92: 20562.48 | F92: 16381.73444 | G92: 4180.745562 | H92: 0 | I92: 16381.73444 | N92: 128531.9965 | O92: 0 | P92: 1 | Q92: 847.4122286
A93: 872.48 | B93: 0 | C93: 18750 | D93: 390 | E93: 20402.48 | F93: 16341.45156 | G93: 4061.028445 | H93: 0 | I93: 16341.45156 | N93: 131403.4645 | O93: 0 | P93: 1 | Q93: 727.6951116
A94: 872.48 | B94: 0 | C94: 18750 | D94: 280 | E94: 20182.48 | F94: 16231.40967 | G94: 3951.070332 | H94: 0 | I94: 16231.40967 | N94: 134272.061 | O94: 0 | P94: 1 | Q94: 617.7369988
A95: 872.48 | B95: 0 | C95: 18750 | D95: 360 | E95: 20342.48 | F95: 16840.10222 | G95: 3502.377785 | H95: 0 | I95: 16840.10222 | N95: 137137.789 | O95: 0 | P95: 1 | Q95: 169.0444514
A96: 872.48 | B96: 0 | C96: 18750 | D96: 510 | E96: 20642.48 | F96: 18644.47951 | G96: 1998.000494 | H96: 0 | I96: 18644.47951 | N96: 138798.8516 | O96: 0 | P96: 1 | Q96: 0
A97: 872.48 | B97: 0 | C97: 18750 | D97: 760 | E97: 21142.48 | F97: 18889.71101 | G97: 2252.768995 | H97: 0 | I97: 18889.71101 | N97: 140687.5449 | O97: 0 | P97: 1 | Q97: 0
A98: 872.48 | B98: 0 | C98: 18750 | D98: 700 | E98: 21022.48 | F98: 19132.9088 | G98: 1889.571197 | H98: 0 | I98: 19132.9088 | N98: 142247.4714 | O98: 0 | P98: 1 | Q98: 0
A99: 872.48 | B99: 0 | C99: 18750 | D99: 470 | E99: 20562.48 | F99: 18014.9644 | G99: 2547.515601 | H99: 0 | I99: 18014.9644 | N99: 144397.988 | O99: 0 | P99: 1 | Q99: 0
A100: 872.48 | B100: 0 | C100: 18750 | D100: 450 | E100: 20522.48 | F100: 18042.21437 | G100: 2480.265629 | H100: 0 | I100: 18042.21437 | N100: 146485.829 | O100: 0 | P100: 1 | Q100: 0
A101: 872.48 | B101: 0 | C101: 18750 | D101: 830 | E101: 21282.48 | F101: 18618.83931 | G101: 2663.640694 | H101: 0 | I101: 18618.83931 | N101: 148736.6198 | O101: 0 | P101: 1 | Q101: 0
A102: 872.48 | B102: 0 | C102: 18750 | D102: 510 | E102: 20642.48 | F102: 18317.56751 | G102: 2324.912488 | H102: 0 | I102: 18317.56751 | N102: 150680.3044 | O102: 0 | P102: 1 | Q102: 0
A103: 872.48 | B103: 0 | C103: 18750 | D103: 500 | E103: 20622.48 | F103: 18054.97591 | G103: 2567.504087 | H103: 0 | I103: 18054.97591 | N103: 152840.3778 | O103: 0 | P103: 1 | Q103: 0
A104: 872.48 | B104: 0 | C104: 18750 | D104: 600 | E104: 20822.48 | F104: 18176.41415 | G104: 2646.06585 | H104: 0 | I104: 18176.41415 | N104: 155068.9967 | O104: 0 | P104: 1 | Q104: 0
A105: 872.48 | B105: 0 | C105: 18750 | D105: 570 | E105: 20762.48 | F105: 17267.09856 | G105: 3495.381438 | H105: 0 | I105: 17267.09856 | N105: 157913.9277 | O105: 0 | P105: 1 | Q105: 162.0481045
A106: 872.48 | B106: 0 | C106: 18750 | D106: 310 | E106: 20242.48 | F106: 17061.18858 | G106: 3181.291417 | H106: 0 | I106: 17061.18858 | N106: 160756.0138 | O106: 0 | P106: 1 | Q106: 0
A107: 872.48 | B107: 0 | C107: 18750 | D107: 460 | E107: 20542.48 | F107: 17096.3725 | G107: 3446.107499 | H107: 0 | I107: 17096.3725 | N107: 163595.2578 | O107: 0 | P107: 1 | Q107: 112.7741658
A108: 872.48 | B108: 0 | C108: 18750 | D108: 310 | E108: 20242.48 | F108: 19054.38954 | G108: 1188.090457 | H108: 0 | I108: 19054.38954 | N108: 164500.9439 | O108: 0 | P108: 1 | Q108: 0
A109: 872.48 | B109: 0 | C109: 18750 | D109: 390 | E109: 20402.48 | F109: 19528.31107 | G109: 874.168935 | H109: 0 | I109: 19528.31107 | N109: 165123.195 | O109: 0 | P109: 1 | Q109: 0
A110: 872.48 | B110: 0 | C110: 18750 | D110: 380 | E110: 20382.48 | F110: 19742.51752 | G110: 639.9624781 | H110: 0 | I110: 19742.51752 | N110: 165534.0381 | O110: 0 | P110: 1 | Q110: 0
A111: 872.48 | B111: 0 | C111: 18750 | D111: 750 | E111: 21122.48 | F111: 19233.61184 | G111: 1888.868163 | H111: 0 | I111: 19233.61184 | N111: 167068.4854 | O111: 0 | P111: 1 | Q111: 0
A112: 872.48 | B112: 0 | C112: 18750 | D112: 1020 | E112: 21662.48 | F112: 18211.82194 | G112: 3450.658065 | H112: 0 | I112: 18211.82194 | N112: 169901.4169 | O112: 0 | P112: 1 | Q112: 117.3247312
A113: 872.48 | B113: 0 | C113: 18750 | D113: 1450 | E113: 22522.48 | F113: 18350.33266 | G113: 4172.14734 | H113: 0 | I113: 18350.33266 | N113: 172731.5155 | O113: 0 | P113: 1 | Q113: 838.814007
A114: 872.48 | B114: 0 | C114: 18750 | D114: 1940 | E114: 23502.48 | F114: 18212.25061 | G114: 5290.229389 | H114: 0 | I114: 18212.25061 | N114: 175558.784 | O114: 0 | P114: 1 | Q114: 1956.896056
A115: 872.48 | B115: 0 | C115: 18750 | D115: 2290 | E115: 24202.48 | F115: 18898.02857 | G115: 5304.451432 | H115: 0 | I115: 18898.02857 | N115: 178383.2252 | O115: 0 | P115: 1 | Q115: 1971.118099
A116: 872.48 | B116: 0 | C116: 18750 | D116: 2510 | E116: 24642.48 | F116: 19400.43162 | G116: 5242.048385 | H116: 0 | I116: 19400.43162 | N116: 181204.8419 | O116: 0 | P116: 1 | Q116: 1908.715051
A117: 872.48 | B117: 0 | C117: 18750 | D117: 1830 | E117: 23282.48 | F117: 14356.56022 | G117: 8925.919785 | H117: 0 | I117: 14356.56022 | N117: 184023.6371 | O117: 0 | P117: 1 | Q117: 5592.586451
A118: 872.48 | B118: 0 | C118: 18750 | D118: 2270 | E118: 24162.48 | F118: 13937.78168 | G118: 10224.69832 | H118: 0 | I118: 13937.78168 | N118: 186839.6135 | O118: 0 | P118: 1 | Q118: 6891.364989
A119: 872.48 | B119: 0 | C119: 18750 | D119: 1740 | E119: 23102.48 | F119: 14505.69399 | G119: 8596.786008 | H119: 0 | I119: 14505.69399 | N119: 189652.7738 | O119: 0 | P119: 1 | Q119: 5263.452674
A120: 872.48 | B120: 0 | C120: 18750 | D120: 460 | E120: 20542.48 | F120: 15019.43101 | G120: 5523.048985 | H120: 0 | I120: 15019.43101 | N120: 192463.1211 | O120: 0 | P120: 1 | Q120: 2189.715652
A121: 872.48 | B121: 0 | C121: 18750 | D121: 680 | E121: 20982.48 | F121: 17634.92073 | G121: 3347.559265 | H121: 0 | I121: 17634.92073 | N121: 195270.658 | O121: 0 | P121: 1 | Q121: 14.22593183
A122: 872.48 | B122: 0 | C122: 18750 | D122: 1490 | E122: 22602.48 | F122: 17794.73175 | G122: 4807.748251 | H122: 0 | I122: 17794.73175 | N122: 198075.3873 | O122: 0 | P122: 1 | Q122: 1474.414918
A123: 872.48 | B123: 0 | C123: 18750 | D123: 1660 | E123: 22942.48 | F123: 17396.85552 | G123: 5545.624481 | H123: 0 | I123: 17396.85552 | N123: 200877.3119 | O123: 0 | P123: 1 | Q123: 2212.291148
A124: 872.48 | B124: 0 | C124: 18750 | D124: 1930 | E124: 23482.48 | F124: 17498.66743 | G124: 5983.812566 | H124: 0 | I124: 17498.66743 | N124: 203676.4346 | O124: 0 | P124: 1 | Q124: 2650.479233
A125: 872.48 | B125: 0 | C125: 18750 | D125: 1430 | E125: 22482.48 | F125: 17232.77077 | G125: 5249.709235 | H125: 0 | I125: 17232.77077 | N125: 206472.7582 | O125: 0 | P125: 1 | Q125: 1916.375901
A126: 872.48 | B126: 0 | C126: 18750 | D126: 1280 | E126: 22182.48 | F126: 17943.93146 | G126: 4238.54854 | H126: 0 | I126: 17943.93146 | N126: 209266.2854 | O126: 0 | P126: 1 | Q126: 905.2152062
A127: 872.48 | B127: 0 | C127: 18750 | D127: 770 | E127: 21162.48 | F127: 17573.10294 | G127: 3589.377056 | H127: 0 | I127: 17573.10294 | N127: 212057.0191 | O127: 0 | P127: 1 | Q127: 256.0437229
A128: 872.48 | B128: 0 | C128: 18750 | D128: 780 | E128: 21182.48 | F128: 17162.4604 | G128: 4020.019597 | H128: 0 | I128: 17162.4604 | N128: 214844.9621 | O128: 0 | P128: 1 | Q128: 686.6862633
A129: 872.48 | B129: 0 | C129: 18750 | D129: 1440 | E129: 22502.48 | F129: 16670.56988 | G129: 5831.910118 | H129: 0 | I129: 16670.56988 | N129: 217630.1171 | O129: 0 | P129: 1 | Q129: 2498.576784
A130: 872.48 | B130: 0 | C130: 18750 | D130: 2400 | E130: 24422.48 | F130: 16576.07323 | G130: 7846.406768 | H130: 0 | I130: 16576.07323 | N130: 220412.487 | O130: 0 | P130: 1 | Q130: 4513.073435
A131: 872.48 | B131: 0 | C131: 18750 | D131: 2400 | E131: 24422.48 | F131: 18669.25842 | G131: 5753.221584 | H131: 0 | I131: 18669.25842 | N131: 223192.0745 | O131: 0 | P131: 1 | Q131: 2419.888251
A132: =M$13 -> 872.48 | B132: =M$14 -> 0 | C132: =M$15 -> 18750 | D132: 2470 | E132: =A132+C132+((D132/2)*M$12) -> 24562.48 | F132: =I132*1 -> 19016.91803 | G132: =E132-F132 -> 5545.561971 | H132: =IF(G132<0,ABS(G132),0) -> 0 | I132: 19016.91803 | N132: 225968.8825 | O132: 0 | P132: =IF(O132>0,0,1) -> 1 | Q132: 2212.228638
A133: 872.48 | B133: 0 | C133: 18750 | D133: 2140 | E133: 23902.48 | F133: 19593.09272 | G133: 4309.387276 | H133: 0 | I133: 19593.09272 | N133: 228742.9136 | O133: 0 | P133: 1 | Q133: 976.0539428
A134: 872.48 | B134: 0 | C134: 18750 | D134: 2580 | E134: 24782.48 | F134: 19889.10572 | G134: 4893.37428 | H134: 0 | I134: 19889.10572 | N134: 231514.1707 | O134: 0 | P134: 1 | Q134: 1560.040947
A135: 872.48 | B135: 0 | C135: 18750 | D135: 1920 | E135: 23462.48 | F135: 19711.02729 | G135: 3751.452707 | H135: 0 | I135: 19711.02729 | N135: 234282.6565 | O135: 0 | P135: 1 | Q135: 418.1193732
A136: 872.48 | B136: 0 | C136: 18750 | D136: 2940 | E136: 25502.48 | F136: 19400.19788 | G136: 6102.282119 | H136: 0 | I136: 19400.19788 | N136: 237048.3738 | O136: 0 | P136: 1 | Q136: 2768.948785
A137: 872.48 | B137: 0 | C137: 18750 | D137: 2110 | E137: 23842.48 | F137: 17373.05789 | G137: 6469.422105 | H137: 0 | I137: 17373.05789 | N137: 239811.3255 | O137: 0 | P137: 1 | Q137: 3136.088772
A138: 872.48 | B138: 0 | C138: 18750 | D138: 2760 | E138: 25142.48 | F138: 17287.56369 | G138: 7854.916307 | H138: 0 | I138: 17287.56369 | N138: 242571.5141 | O138: 0 | P138: 1 | Q138: 4521.582974
A139: 872.48 | B139: 0 | C139: 18750 | D139: 2250 | E139: 24122.48 | F139: 17169.70425 | G139: 6952.775746 | H139: 0 | I139: 17169.70425 | N139: 245328.9426 | O139: 0 | P139: 1 | Q139: 3619.442412
A140: 872.48 | B140: 0 | C140: 18750 | D140: 2370 | E140: 24362.48 | F140: 17297.52384 | G140: 7064.956162 | H140: 0 | I140: 17297.52384 | N140: 248083.6137 | O140: 0 | P140: 1 | Q140: 3731.622829
A141: 872.48 | B141: 0 | C141: 18750 | D141: 2390 | E141: 24402.48 | F141: 17117.6464 | G141: 7284.833604 | H141: 0 | I141: 17117.6464 | N141: 250835.5301 | O141: 0 | P141: 1 | Q141: 3951.50027
A142: 872.48 | B142: 0 | C142: 18750 | D142: 2190 | E142: 24002.48 | F142: 16925.48272 | G142: 7076.997283 | H142: 0 | I142: 16925.48272 | N142: 253584.6945 | O142: 0 | P142: 1 | Q142: 3743.66395
A143: 872.48 | B143: 0 | C143: 18750 | D143: 2540 | E143: 24702.48 | F143: 17079.68237 | G143: 7622.797627 | H143: 0 | I143: 17079.68237 | N143: 256331.1098 | O143: 0 | P143: 1 | Q143: 4289.464294
A144: 872.48 | B144: 0 | C144: 18750 | D144: 2450 | E144: 24522.48 | F144: 17098.3475 | G144: 7424.132496 | H144: 0 | I144: 17098.3475 | N144: 259074.7787 | O144: 0 | P144: 1 | Q144: 4090.799163
A145: 872.48 | B145: 0 | C145: 18750 | D145: 2360 | E145: 24342.48 | F145: 17103.53995 | G145: 7238.940048 | H145: 0 | I145: 17103.53995 | N145: 261815.704 | O145: 0 | P145: 1 | Q145: 3905.606715
A146: 872.48 | B146: 0 | C146: 18750 | D146: 2670 | E146: 24962.48 | F146: 17752.20779 | G146: 7210.272208 | H146: 0 | I146: 17752.20779 | N146: 264553.8882 | O146: 0 | P146: 1 | Q146: 3876.938875
A147: 872.48 | B147: 0 | C147: 18750 | D147: 2230 | E147: 24082.48 | F147: 17700.65992 | G147: 6381.820077 | H147: 0 | I147: 17700.65992 | N147: 267289.3344 | O147: 0 | P147: 1 | Q147: 3048.486744
A148: 872.48 | B148: 0 | C148: 18750 | D148: 2650 | E148: 24922.48 | F148: 18003.91918 | G148: 6918.560815 | H148: 0 | I148: 18003.91918 | N148: 270022.045 | O148: 0 | P148: 1 | Q148: 3585.227482
A149: 872.48 | B149: 0 | C149: 18750 | D149: 2450 | E149: 24522.48 | F149: 18179.36535 | G149: 6343.114648 | H149: 0 | I149: 18179.36535 | N149: 272752.023 | O149: 0 | P149: 1 | Q149: 3009.781315
A150: 872.48 | B150: 0 | C150: 18750 | D150: 2360 | E150: 24342.48 | F150: 18025.32697 | G150: 6317.15303 | H150: 0 | I150: 18025.32697 | N150: 275479.271 | O150: 0 | P150: 1 | Q150: 2983.819696
A151: 872.48 | B151: 0 | C151: 18750 | D151: 2610 | E151: 24842.48 | F151: 18281.50851 | G151: 6560.971487 | H151: 0 | I151: 18281.50851 | N151: 278203.7917 | O151: 0 | P151: 1 | Q151: 3227.638153
A152: 872.48 | B152: 0 | C152: 18750 | D152: 2550 | E152: 24722.48 | F152: 18045.66203 | G152: 6676.817966 | H152: 0 | I152: 18045.66203 | N152: 280925.5879 | O152: 0 | P152: 1 | Q152: 3343.484632
A153: 872.48 | B153: 0 | C153: 18750 | D153: 2450 | E153: 24522.48 | F153: 17702.89621 | G153: 6819.583794 | H153: 0 | I153: 17702.89621 | N153: 283644.6623 | O153: 0 | P153: 1 | Q153: 3486.250461
A154: 872.48 | B154: 0 | C154: 18750 | D154: 2530 | E154: 24682.48 | F154: 17709.06515 | G154: 6973.414846 | H154: 0 | I154: 17709.06515 | N154: 286361.0176 | O154: 0 | P154: 1 | Q154: 3640.081513
A155: 872.48 | B155: 0 | C155: 18750 | D155: 2470 | E155: 24562.48 | F155: 17912.18884 | G155: 6650.291155 | H155: 0 | I155: 17912.18884 | N155: 289074.6566 | O155: 0 | P155: 1 | Q155: 3316.957822
A156: 872.48 | B156: 0 | C156: 18750 | D156: 2270 | E156: 24162.48 | F156: 18847.86825 | G156: 5314.61175 | H156: 0 | I156: 18847.86825 | N156: 291785.582 | O156: 0 | P156: 1 | Q156: 1981.278416
A157: 872.48 | B157: 0 | C157: 18750 | D157: 2340 | E157: 24302.48 | F157: 17956.49653 | G157: 6345.98347 | H157: 0 | I157: 17956.49653 | N157: 294493.7964 | O157: 0 | P157: 1 | Q157: 3012.650137
A158: 872.48 | B158: 0 | C158: 18750 | D158: 2230 | E158: 24082.48 | F158: 18027.1207 | G158: 6055.359301 | H158: 0 | I158: 18027.1207 | N158: 297199.3026 | O158: 0 | P158: 1 | Q158: 2722.025968
A159: 872.48 | B159: 0 | C159: 18750 | D159: 2480 | E159: 24582.48 | F159: 17948.04277 | G159: 6634.437232 | H159: 0 | I159: 17948.04277 | N159: 299902.1033 | O159: 0 | P159: 1 | Q159: 3301.103898
A160: 872.48 | B160: 0 | C160: 18750 | D160: 2380 | E160: 24382.48 | F160: 15204.21751 | G160: 9178.262489 | H160: 0 | I160: 15204.21751 | N160: 302602.2012 | O160: 0 | P160: 1 | Q160: 5844.929156
A161: 872.48 | B161: 0 | C161: 18750 | D161: 2150 | E161: 23922.48 | F161: 18163.05023 | G161: 5759.429768 | H161: 0 | I161: 18163.05023 | N161: 305299.599 | O161: 0 | P161: 1 | Q161: 2426.096435
A162: 872.48 | B162: 0 | C162: 18750 | D162: 2340 | E162: 24302.48 | F162: 18235.86945 | G162: 6066.610552 | H162: 0 | I162: 18235.86945 | N162: 307994.2994 | O162: 0 | P162: 1 | Q162: 2733.277219
A163: 872.48 | B163: 0 | C163: 18750 | D163: 2380 | E163: 24382.48 | F163: 18874.98603 | G163: 5507.49397 | H163: 0 | I163: 18874.98603 | N163: 310686.3051 | O163: 0 | P163: 1 | Q163: 2174.160636
A164: 872.48 | B164: 0 | C164: 18750 | D164: 2280 | E164: 24182.48 | F164: 20105.61107 | G164: 4076.868931 | H164: 0 | I164: 20105.61107 | N164: 313375.6188 | O164: 0 | P164: 1 | Q164: 743.5355974
A165: 872.48 | B165: 0 | C165: 18750 | D165: 2310 | E165: 24242.48 | F165: 20900.77583 | G165: 3341.704173 | H165: 0 | I165: 20900.77583 | N165: 316062.2432 | O165: 0 | P165: 1 | Q165: 8.3708397
A166: 872.48 | B166: 0 | C166: 18750 | D166: 2180 | E166: 23982.48 | F166: 20845.60043 | G166: 3136.879571 | H166: 0 | I166: 20845.60043 | N166: 318746.1809 | O166: 0 | P166: 1 | Q166: 0
A167: 872.48 | B167: 0 | C167: 18750 | D167: 2570 | E167: 24762.48 | F167: 20035.21798 | G167: 4727.26202 | H167: 0 | I167: 20035.21798 | N167: 321427.4347 | O167: 0 | P167: 1 | Q167: 1393.928687
A168: 872.48 | B168: 0 | C168: 18750 | D168: 2300 | E168: 24222.48 | F168: 18587.94909 | G168: 5634.530911 | H168: 0 | I168: 18587.94909 | N168: 324106.0073 | O168: 0 | P168: 1 | Q168: 2301.197578
A169: 872.48 | B169: 0 | C169: 18750 | D169: 1870 | E169: 23362.48 | F169: 18637.35574 | G169: 4725.124261 | H169: 0 | I169: 18637.35574 | N169: 326781.9013 | O169: 0 | P169: 1 | Q169: 1391.790928
A170: 872.48 | B170: 0 | C170: 18750 | D170: 1940 | E170: 23502.48 | F170: 18560.64154 | G170: 4941.838457 | H170: 0 | I170: 18560.64154 | N170: 329455.1194 | O170: 0 | P170: 1 | Q170: 1608.505124
A171: 872.48 | B171: 0 | C171: 18750 | D171: 2640 | E171: 24902.48 | F171: 18436.4257 | G171: 6466.054301 | H171: 0 | I171: 18436.4257 | N171: 332125.6643 | O171: 0 | P171: 1 | Q171: 3132.720968
A172: 872.48 | B172: 0 | C172: 18750 | D172: 2390 | E172: 24402.48 | F172: 18563.06651 | G172: 5839.413488 | H172: 0 | I172: 18563.06651 | N172: 334793.5386 | O172: 0 | P172: 1 | Q172: 2506.080155
A173: 872.48 | B173: 0 | C173: 18750 | D173: 2580 | E173: 24782.48 | F173: 18658.16585 | G173: 6124.314149 | H173: 0 | I173: 18658.16585 | N173: 337458.7451 | O173: 0 | P173: 1 | Q173: 2790.980816
A174: 872.48 | B174: 0 | C174: 18750 | D174: 2260 | E174: 24142.48 | F174: 18665.04081 | G174: 5477.439191 | H174: 0 | I174: 18665.04081 | N174: 340121.2863 | O174: 0 | P174: 1 | Q174: 2144.105858
A175: 872.48 | B175: 0 | C175: 18750 | D175: 2580 | E175: 24782.48 | F175: 18782.45284 | G175: 6000.027159 | H175: 0 | I175: 18782.45284 | N175: 342781.165 | O175: 0 | P175: 1 | Q175: 2666.693826
A176: 872.48 | B176: 0 | C176: 18750 | D176: 2220 | E176: 24062.48 | F176: 18875.13849 | G176: 5187.34151 | H176: 0 | I176: 18875.13849 | N176: 345438.3839 | O176: 0 | P176: 1 | Q176: 1854.008177
A177: 872.48 | B177: 0 | C177: 18750 | D177: 1220 | E177: 22062.48 | F177: 19215.70431 | G177: 2846.775693 | H177: 0 | I177: 19215.70431 | N177: 348092.9455 | O177: 0 | P177: 1 | Q177: 0
A178: 872.48 | B178: 0 | C178: 18750 | D178: 1030 | E178: 21682.48 | F178: 19413.16066 | G178: 2269.319342 | H178: 0 | I178: 19413.16066 | N178: 349787.24 | O178: 0 | P178: 1 | Q178: 0
A179: 872.48 | B179: 0 | C179: 18750 | D179: 1470 | E179: 22562.48 | F179: 18361.53428 | G179: 4200.945719 | H179: 0 | I179: 18361.53428 | N179: 352437.4527 | O179: 0 | P179: 1 | Q179: 867.6123857
A180: 872.48 | B180: 0 | C180: 18750 | D180: 1360 | E180: 22342.48 | F180: 17399.41979 | G180: 4943.060212 | H180: 0 | I180: 17399.41979 | N180: 355085.0153 | O180: 0 | P180: 1 | Q180: 1609.726879
A181: 872.48 | B181: 0 | C181: 18750 | D181: 1840 | E181: 23302.48 | F181: 17641.14269 | G181: 5661.337307 | H181: 0 | I181: 17641.14269 | N181: 357729.9302 | O181: 0 | P181: 1 | Q181: 2328.003974
A182: 872.48 | B182: 0 | C182: 18750 | D182: 1860 | E182: 23342.48 | F182: 17773.91871 | G182: 5568.561292 | H182: 0 | I182: 17773.91871 | N182: 360372.2003 | O182: 0 | P182: 1 | Q182: 2235.227958
A183: 872.48 | B183: 0 | C183: 18750 | D183: 2190 | E183: 24002.48 | F183: 18209.50909 | G183: 5792.970911 | H183: 0 | I183: 18209.50909 | N183: 363011.8281 | O183: 0 | P183: 1 | Q183: 2459.637578
A184: 872.48 | B184: 0 | C184: 18750 | D184: 1720 | E184: 23062.48 | F184: 18661.86947 | G184: 4400.610525 | H184: 0 | I184: 18661.86947 | N184: 365648.8163 | O184: 0 | P184: 1 | Q184: 1067.277192
A185: 872.48 | B185: 0 | C185: 18750 | D185: 1410 | E185: 22442.48 | F185: 18719.69206 | G185: 3722.787939 | H185: 0 | I185: 18719.69206 | N185: 368283.1675 | O185: 0 | P185: 1 | Q185: 389.4546058
A186: 872.48 | B186: 0 | C186: 18750 | D186: 1130 | E186: 21882.48 | F186: 19173.67899 | G186: 2708.801013 | H186: 0 | I186: 19173.67899 | N186: 370352.8052 | O186: 0 | P186: 1 | Q186: 0
A187: 872.48 | B187: 0 | C187: 18750 | D187: 1620 | E187: 22862.48 | F187: 18876.13851 | G187: 3986.341493 | H187: 0 | I187: 18876.13851 | N187: 372982.4524 | O187: 0 | P187: 1 | Q187: 653.0081602
A188: 872.48 | B188: 0 | C188: 18750 | D188: 1370 | E188: 22362.48 | F188: 19045.72564 | G188: 3316.754364 | H188: 0 | I188: 19045.72564 | N188: 375609.47 | O188: 0 | P188: 1 | Q188: -16.57896938
A189: 872.48 | B189: 0 | C189: 18750 | D189: 470 | E189: 20562.48 | F189: 19172.05766 | G189: 1390.422343 | H189: 0 | I189: 19172.05766 | N189: 376485.2406 | O189: 0 | P189: 1 | Q189: 0
A190: 872.48 | B190: 0 | C190: 18750 | D190: 370 | E190: 20362.48 | F190: 19285.59712 | G190: 1076.882882 | H190: 0 | I190: 19285.59712 | N190: 377077.95 | O190: 0 | P190: 1 | Q190: 0
A191: 872.48 | B191: 0 | C191: 18750 | D191: 200 | E191: 20022.48 | F191: 19324.66115 | G191: 697.8188472 | H191: 0 | I191: 19324.66115 | N191: 377328.909 | O191: 0 | P191: 1 | Q191: 0
A192: 872.48 | B192: 0 | C192: 18750 | D192: 120 | E192: 19862.48 | F192: 19293.6221 | G192: 568.8579015 | H192: 0 | I192: 19293.6221 | N192: 377463.5522 | O192: 0 | P192: 1 | Q192: 0
A193: 872.48 | B193: 0 | C193: 18750 | D193: 30 | E193: 19682.48 | F193: 19460.06444 | G193: 222.4155575 | H193: 0 | I193: 19460.06444 | N193: 377286.2626 | O193: 0 | P193: 1 | Q193: 0
A194: 872.48 | B194: 0 | C194: 18750 | D194: 0 | E194: 19622.48 | F194: 19193.29538 | G194: 429.1846244 | H194: 0 | I194: 19193.29538 | N194: 377295.2425 | O194: 0 | P194: 1 | Q194: 0
A195: 872.48 | B195: 0 | C195: 18750 | D195: 0 | E195: 19622.48 | F195: 19858.06063 | G195: -235.5806333 | H195: 235.5806333 | I195: 19858.06063 | N195: 376658.8086 | O195: 0 | P195: 1 | Q195: 0
A196: =M$13 -> 872.48 | B196: =M$14 -> 0 | C196: =M$15 -> 18750 | D196: 0 | E196: =A196+C196+((D196/2)*M$12) -> 19622.48 | F196: =I196*1 -> 21428.66151 | G196: =E196-F196 -> -1806.181512 | H196: =IF(G196<0,ABS(G196),0) -> 1806.181512 | I196: 21428.66151 | N196: 374295.3501 | O196: 0 | P196: =IF(O196>0,0,1) -> 1 | Q196: 0
A197: 872.48 | B197: 0 | C197: 18750 | D197: 0 | E197: 19622.48 | F197: 19712.10102 | G197: -89.62101631 | H197: 89.62101631 | I197: 19712.10102 | N197: 373822.4716 | O197: 0 | P197: 1 | Q197: 0
A198: 872.48 | B198: 0 | C198: 18750 | D198: 0 | E198: 19622.48 | F198: 21409.10265 | G198: -1786.622653 | H198: 1786.622653 | I198: 21409.10265 | N198: 371483.3642 | O198: 0 | P198: 1 | Q198: 0
A199: 872.48 | B199: 0 | C199: 18750 | D199: 0 | E199: 19622.48 | F199: 22164.97729 | G199: -2542.497294 | H199: 2542.497294 | I199: 22164.97729 | N199: 368315.1339 | O199: 0 | P199: 1 | Q199: 0
A200: 872.48 | B200: 0 | C200: 18750 | D200: 0 | E200: 19622.48 | F200: 22198.14126 | G200: -2575.661256 | H200: 2575.661256 | I200: 22198.14126 | N200: 365113.5913 | O200: 0 | P200: 1 | Q200: 0
... 4300 more rows

Sheet Storage technologies
A1: LAES
B2: Storage Characteristics
A3: Round-trip efficiency | B3: 0.55
A4: Self discharge (hours) | B4: 0.01
A5: Charging rate (kW/hour) | B5: 30000
A6: Discharging rate (kW/hour) | B6: 30000
A8: Capacity (MWh) | B8: % Hours of Autonomy over a year | C8: % Deficit supplied by Storage | D8: % Exported
A9: No Storage | B9: 0.4873 | C9: 0 | D9: 1
A10: 2.5 | B10: 0.5547 | C10: 0.0401 | D10: 0.9331
A11: 5 | B11: 0.5756 | C11: 0.0584 | D11: 0.8933
A12: 10 | B12: 0.6002 | C12: 0.0822 | D12: 0.8346
A13: 20 | B13: 0.6252 | C13: 0.1122 | D13: 0.748
A14: 50 | B14: 0.6626 | C14: 0.1591 | D14: 0.5694
A15: 100 | B15: 0.6857 | C15: 0.2001 | D15: 0.362
A16: 200 | B16: 0.7032 | C16: 0.2366 | D16: 0.1146
A17: 500 | B17: 0.7075 | C17: 0.243 | D17: 0
A18: 1000 | B18: 0.7075 | C18: 0.243 | D18: 0
A20: Electrochemical batteries
B21: Storage Characteristics
A22: Round-trip efficiency | B22: 0.7
A23: Self discharge (hours) | B23: 0.003
A24: Charging rate (kW/hour) | B24: 20000
A25: Discharging rate (kW/hour) | B25: 20000
A27: Capacity (kWh) | B27: % Hours of Autonomy over a year | C27: % Deficit supplied by Storage | D27: % Exported
A28: No Storage | B28: 0.4873 | C28: 0 | D28: 1
A29: 2.5 | B29: 0.5579271773 | C29: 0.04274326413 | D29: 0.9423732366
A30: 5 | B30: 0.5808697637 | C30: 0.06302455476 | D30: 0.9104521886
A31: 10 | B31: 0.6080356124 | C31: 0.09025310236 | D31: 0.8656509367
A32: 20 | B32: 0.6383974432 | C32: 0.1259615178 | D32: 0.8028905726
A33: 50 | B33: 0.6846250428 | C33: 0.1882036272 | D33: 0.6805552685
A34: 100 | B34: 0.7209222691 | C34: 0.2459113216 | D34: 0.5466090561
A35: 200 | B35: 0.761100331 | C35: 0.309683574 | D35: 0.3482675143
A36: 500 | B36: 0.7952288552 | C36: 0.3695700098 | D36: 0.0616434283
A37: 1000 | B37: 0.7972834151 | C37: 0.3722435014 | D37: 0
A39: Flow batteries
B40: Storage Characteristics
A41: Round-trip efficiency | B41: 0.8
A42: Self discharge (hours) | B42: 0.001
A43: Charging rate (kW/hour) | B43: 3000
A44: Discharging rate (kW/hour) | B44: 3000
A46: Capacity (kWh) | B46: % Hours of Autonomy over a year | C46: % Deficit supplied by Storage | D46: % Exported
A47: No Storage | B47: 0.4873 | C47: 0 | D47: 1
A48: 2.5 | B48: 0.5604 | C48: 0.0443 | D48: 0.9461
A49: 5 | B49: 0.5834 | C49: 0.0661 | D49: 0.9176
A50: 10 | B50: 0.6131 | C50: 0.0956 | D50: 0.8783
A51: 20 | B51: 0.6432 | C51: 0.1345 | D51: 0.8255
A52: 50 | B52: 0.6879 | C52: 0.2028 | D52: 0.7286
A53: 100 | B53: 0.7275 | C53: 0.2686 | D53: 0.6267
A54: 200 | B54: 0.7699 | C54: 0.3402 | D54: 0.4945
A55: 500 | B55: 0.8106 | C55: 0.4127 | D55: 0.3027
A56: 1000 | B56: 0.8142 | C56: 0.4198 | D56: 0.2689

Sheet Scenarios
A1: Average year no storage
A2: % Deficit Supplied Storage | B2: 0
A3: % Hours the factory is Autonomous | B3: 0.4897842712
A4: % Surplus Exported | B4: 1
A5: Average year (Storage: LAES, 200 MWh)
A6: % Deficit Supplied Storage | B6: 0.2366
A7: % Hours the factory is Autonomous | B7: 0.7032
A8: % Surplus Exported | B8: 0.1146
A10: Inappropiate Selection of Maintenance Period (Storage: LAES, 200 MWh)
A11: % Deficit Supplied Storage | B11: 0.1382
A12: % Hours the factory is Autonomous | B12: 0.6608
A13: % Surplus Exported | B13: 0.0919
A14: Appropiate Selection of Maintenance Period (Storage: LAES, 200MWh)
A15: % Deficit Supplied Storage | B15: 0.2366
A16: % Hours the factory is Autonomous | B16: 0.7032
A17: % Surplus Exported | B17: 0.1146
A19: Decrease 30% Wind Generation (Storage: LAES, 200MWh)
A20: % Deficit Supplied Storage | B20: 0.1813247376
A21: % Hours over a year when the factory is autonomous | B21: 0.6267549367
A22: % Surplus Exported | B22: 0.0248371296
A23: Drecrease 30% Wind generation and No storage
A24: % Deficit Supplied Storage | B24: 0
A25: % Hours the factory is Autonomous | B25: 0.4344252939
A26: % Surplus Exported | B26: 1
A27: Year of no biogas plant (Storage: LAES, 200MWh)
A28: % Deficit Supplied Storage | B28: 0.1597987656
A29: % Hours the factory is Autonomous | B29: 0.5442301107
A30: % Surplus Exported | B30: 0.07374121619
A31: Year of no biogas plant and no storage
A32: % Deficit Supplied Storage | B32: 0
A33: % Hours the factory is Autonomous | B33: 0.3681086634
A34: % Surplus Exported | B34: 1
A35: Year of no wind turbines (Storage: LAES, 200MWh)
A36: % Deficit Supplied Storage | B36: 0.0391498355
A37: % Hours the factory is Autonomous | B37: 0.2795342997
A38: % Surplus Exported | B38: 0
A39: Year of no wind turbines no storage
A40: % Deficit Supplied Storage | B40: 0
A41: % Hours the factory is Autonomous | B41: 0.1932427805
A42: % Surplus Exported | B42: 1
A48: Increase 10% of the demand (Storage: LAES, 200MWh)
A49: % Deficit Supplied Storage | B49: 0.08864253129
A50: % Hours the factory is Autonomous | B50: 0.3616025568
A51: % Surplus Exported | B51: 0.02787808026
A52: Increased 10% Demand and no storage
A53: % Deficit Supplied Storage | B53: 0
A54: % Hours the factory is Autonomous | B54: 0.2423239356
A55: % Surplus Exported | B55: 1
A56: Incease 20% of the Demand
A57: % Deficit Supplied Storage | B57: 0.02869541456
A58: % Hours the factory is Autonomous | B58: 0.1734961762
A59: % Surplus Exported | B59: 0
A60: Incease 20% of the Demand No storage
A61: % Deficit Supplied Storage | B61: 0
A62: % Hours the factory is Autonomous | B62: 0.1190503367
A63: % Surplus Exported | B63: 1
A66: % of CO2 emissions from the grid
A67: No storage | B67: 1
A68: LAES, 200 MWh | B68: 0.7624

Sheet Demand-Supply
E1: WT | F1: 4 WT | G1: MW
A2: 872.48 | B2: =A2/1000 -> 0.87248 | C2: 18750 | D2: =C2/1000 -> 18.75 | E2: 500 | F2: =E2*2 -> 1000 | G2: =F2/1000 -> 1 | H2: =B2+D2+G2 -> 20.62248 | I2: 20586.33141 | J2: =I2/1000 -> 20.58633141
A3: 872.48 | B3: =A3/1000 -> 0.87248 | C3: 18750 | D3: =C3/1000 -> 18.75 | E3: 1070 | F3: =E3*2 -> 2140 | G3: =F3/1000 -> 2.14 | H3: =B3+D3+G3 -> 21.76248 | I3: 20653.2755 | J3: =I3/1000 -> 20.6532755
A4: 872.48 | B4: 0.87248 | C4: 18750 | D4: 18.75 | E4: 680 | F4: 1360 | G4: 1.36 | H4: 20.98248 | I4: 20601.27395 | J4: 20.60127395
A5: 872.48 | B5: 0.87248 | C5: 18750 | D5: 18.75 | E5: 700 | F5: 1400 | G5: 1.4 | H5: 21.02248 | I5: 21101.03458 | J5: 21.10103458
A6: 872.48 | B6: 0.87248 | C6: 18750 | D6: 18.75 | E6: 450 | F6: 900 | G6: 0.9 | H6: 20.52248 | I6: 21314.31945 | J6: 21.31431945
A7: 872.48 | B7: 0.87248 | C7: 18750 | D7: 18.75 | E7: 270 | F7: 540 | G7: 0.54 | H7: 20.16248 | I7: 20643.44293 | J7: 20.64344293
A8: 872.48 | B8: 0.87248 | C8: 18750 | D8: 18.75 | E8: 450 | F8: 900 | G8: 0.9 | H8: 20.52248 | I8: 20822.64033 | J8: 20.82264033
A9: 872.48 | B9: 0.87248 | C9: 18750 | D9: 18.75 | E9: 460 | F9: 920 | G9: 0.92 | H9: 20.54248 | I9: 21219.24268 | J9: 21.21924268
A10: 872.48 | B10: 0.87248 | C10: 18750 | D10: 18.75 | E10: 520 | F10: 1040 | G10: 1.04 | H10: 20.66248 | I10: 21365.47122 | J10: 21.36547122
A11: 872.48 | B11: 0.87248 | C11: 18750 | D11: 18.75 | E11: 480 | F11: 960 | G11: 0.96 | H11: 20.58248 | I11: 21485.38447 | J11: 21.48538447
A12: 872.48 | B12: 0.87248 | C12: 18750 | D12: 18.75 | E12: 350 | F12: 700 | G12: 0.7 | H12: 20.32248 | I12: 21641.2441 | J12: 21.6412441
A13: 872.48 | B13: 0.87248 | C13: 18750 | D13: 18.75 | E13: 800 | F13: 1600 | G13: 1.6 | H13: 21.22248 | I13: 21572.30997 | J13: 21.57230997
A14: 872.48 | B14: 0.87248 | C14: 18750 | D14: 18.75 | E14: 1570 | F14: 3140 | G14: 3.14 | H14: 22.76248 | I14: 21580.6275 | J14: 21.5806275
A15: 872.48 | B15: 0.87248 | C15: 18750 | D15: 18.75 | E15: 990 | F15: 1980 | G15: 1.98 | H15: 21.60248 | I15: 21759.7923 | J15: 21.7597923
A16: 872.48 | B16: 0.87248 | C16: 18750 | D16: 18.75 | E16: 1760 | F16: 3520 | G16: 3.52 | H16: 23.14248 | I16: 21795.20251 | J16: 21.79520251
A17: 872.48 | B17: 0.87248 | C17: 18750 | D17: 18.75 | E17: 2030 | F17: 4060 | G17: 4.06 | H17: 23.68248 | I17: 21636.84026 | J17: 21.63684026
A18: 872.48 | B18: 0.87248 | C18: 18750 | D18: 18.75 | E18: 1820 | F18: 3640 | G18: 3.64 | H18: 23.26248 | I18: 20907.00085 | J18: 20.90700085
A19: 872.48 | B19: 0.87248 | C19: 18750 | D19: 18.75 | E19: 1210 | F19: 2420 | G19: 2.42 | H19: 22.04248 | I19: 21586.72385 | J19: 21.58672385
A20: 872.48 | B20: 0.87248 | C20: 18750 | D20: 18.75 | E20: 560 | F20: 1120 | G20: 1.12 | H20: 20.74248 | I20: 21738.85719 | J20: 21.73885719
A21: 872.48 | B21: 0.87248 | C21: 18750 | D21: 18.75 | E21: 230 | F21: 460 | G21: 0.46 | H21: 20.08248 | I21: 21017.78521 | J21: 21.01778521
A22: 872.48 | B22: 0.87248 | C22: 18750 | D22: 18.75 | E22: 280 | F22: 560 | G22: 0.56 | H22: 20.18248 | I22: 21057.22791 | J22: 21.05722791
A23: 872.48 | B23: 0.87248 | C23: 18750 | D23: 18.75 | E23: 460 | F23: 920 | G23: 0.92 | H23: 20.54248 | I23: 21675.66185 | J23: 21.67566185
A24: 872.48 | B24: 0.87248 | C24: 18750 | D24: 18.75 | E24: 810 | F24: 1620 | G24: 1.62 | H24: 21.24248 | I24: 20891.46937 | J24: 20.89146937
A25: 872.48 | B25: 0.87248 | C25: 18750 | D25: 18.75 | E25: 2020 | F25: 4040 | G25: 4.04 | H25: 23.66248 | I25: 20573.2014 | J25: 20.5732014
A26: 872.48 | B26: 0.87248 | C26: 18750 | D26: 18.75 | E26: 2540 | F26: 5080 | G26: 5.08 | H26: 24.70248 | I26: 20576.56878 | J26: 20.57656878
A27: 872.48 | B27: 0.87248 | C27: 18750 | D27: 18.75 | E27: 1490 | F27: 2980 | G27: 2.98 | H27: 22.60248 | I27: 20341.85111 | J27: 20.34185111
A28: 872.48 | B28: 0.87248 | C28: 18750 | D28: 18.75 | E28: 1370 | F28: 2740 | G28: 2.74 | H28: 22.36248 | I28: 20257.09311 | J28: 20.25709311
A29: 872.48 | B29: 0.87248 | C29: 18750 | D29: 18.75 | E29: 1220 | F29: 2440 | G29: 2.44 | H29: 22.06248 | I29: 20430.86045 | J29: 20.43086045
A30: 872.48 | B30: 0.87248 | C30: 18750 | D30: 18.75 | E30: 1250 | F30: 2500 | G30: 2.5 | H30: 22.12248 | I30: 20269.46693 | J30: 20.26946693
A31: 872.48 | B31: 0.87248 | C31: 18750 | D31: 18.75 | E31: 1590 | F31: 3180 | G31: 3.18 | H31: 22.80248 | I31: 19861.41568 | J31: 19.86141568
A32: 872.48 | B32: 0.87248 | C32: 18750 | D32: 18.75 | E32: 2050 | F32: 4100 | G32: 4.1 | H32: 23.72248 | I32: 20674.50563 | J32: 20.67450563
A33: 872.48 | B33: 0.87248 | C33: 18750 | D33: 18.75 | E33: 1760 | F33: 3520 | G33: 3.52 | H33: 23.14248 | I33: 20866.19311 | J33: 20.86619311
A34: 872.48 | B34: 0.87248 | C34: 18750 | D34: 18.75 | E34: 1600 | F34: 3200 | G34: 3.2 | H34: 22.82248 | I34: 21218.0753 | J34: 21.2180753
A35: 872.48 | B35: 0.87248 | C35: 18750 | D35: 18.75 | E35: 1540 | F35: 3080 | G35: 3.08 | H35: 22.70248 | I35: 21020.78034 | J35: 21.02078034
A36: 872.48 | B36: 0.87248 | C36: 18750 | D36: 18.75 | E36: 1700 | F36: 3400 | G36: 3.4 | H36: 23.02248 | I36: 21242.55536 | J36: 21.24255536
A37: 872.48 | B37: 0.87248 | C37: 18750 | D37: 18.75 | E37: 2040 | F37: 4080 | G37: 4.08 | H37: 23.70248 | I37: 21938.86705 | J37: 21.93886705
A38: 872.48 | B38: 0.87248 | C38: 18750 | D38: 18.75 | E38: 1750 | F38: 3500 | G38: 3.5 | H38: 23.12248 | I38: 22314.17817 | J38: 22.31417817
A39: 872.48 | B39: 0.87248 | C39: 18750 | D39: 18.75 | E39: 1790 | F39: 3580 | G39: 3.58 | H39: 23.20248 | I39: 22120.347 | J39: 22.120347
A40: 872.48 | B40: 0.87248 | C40: 18750 | D40: 18.75 | E40: 2230 | F40: 4460 | G40: 4.46 | H40: 24.08248 | I40: 21949.42473 | J40: 21.94942473
A41: 872.48 | B41: 0.87248 | C41: 18750 | D41: 18.75 | E41: 2240 | F41: 4480 | G41: 4.48 | H41: 24.10248 | I41: 22144.2246 | J41: 22.1442246
A42: 872.48 | B42: 0.87248 | C42: 18750 | D42: 18.75 | E42: 1370 | F42: 2740 | G42: 2.74 | H42: 22.36248 | I42: 22000.23507 | J42: 22.00023507
A43: 872.48 | B43: 0.87248 | C43: 18750 | D43: 18.75 | E43: 900 | F43: 1800 | G43: 1.8 | H43: 21.42248 | I43: 24087.01035 | J43: 24.08701035
A44: 872.48 | B44: 0.87248 | C44: 18750 | D44: 18.75 | E44: 730 | F44: 1460 | G44: 1.46 | H44: 21.08248 | I44: 24038.20227 | J44: 24.03820227
A45: 872.48 | B45: 0.87248 | C45: 18750 | D45: 18.75 | E45: 640 | F45: 1280 | G45: 1.28 | H45: 20.90248 | I45: 24059.41893 | J45: 24.05941893
A46: 872.48 | B46: 0.87248 | C46: 18750 | D46: 18.75 | E46: 470 | F46: 940 | G46: 0.94 | H46: 20.56248 | I46: 23804.50239 | J46: 23.80450239
A47: 872.48 | B47: 0.87248 | C47: 18750 | D47: 18.75 | E47: 820 | F47: 1640 | G47: 1.64 | H47: 21.26248 | I47: 22592.60249 | J47: 22.59260249
A48: 872.48 | B48: 0.87248 | C48: 18750 | D48: 18.75 | E48: 1030 | F48: 2060 | G48: 2.06 | H48: 21.68248 | I48: 20878.39434 | J48: 20.87839434
A49: 872.48 | B49: 0.87248 | C49: 18750 | D49: 18.75 | E49: 2030 | F49: 4060 | G49: 4.06 | H49: 23.68248 | I49: 21430.48408 | J49: 21.43048408
A50: 872.48 | B50: 0.87248 | C50: 18750 | D50: 18.75 | E50: 1980 | F50: 3960 | G50: 3.96 | H50: 23.58248 | I50: 22043.39402 | J50: 22.04339402
A51: 872.48 | B51: 0.87248 | C51: 18750 | D51: 18.75 | E51: 1560 | F51: 3120 | G51: 3.12 | H51: 22.74248 | I51: 22186.00617 | J51: 22.18600617
A52: 872.48 | B52: 0.87248 | C52: 18750 | D52: 18.75 | E52: 1640 | F52: 3280 | G52: 3.28 | H52: 22.90248 | I52: 22005.16125 | J52: 22.00516125
A53: 872.48 | B53: 0.87248 | C53: 18750 | D53: 18.75 | E53: 2120 | F53: 4240 | G53: 4.24 | H53: 23.86248 | I53: 21509.86709 | J53: 21.50986709
A54: 872.48 | B54: 0.87248 | C54: 18750 | D54: 18.75 | E54: 1720 | F54: 3440 | G54: 3.44 | H54: 23.06248 | I54: 22106.39694 | J54: 22.10639694
A55: 872.48 | B55: 0.87248 | C55: 18750 | D55: 18.75 | E55: 2150 | F55: 4300 | G55: 4.3 | H55: 23.92248 | I55: 22232.2864 | J55: 22.2322864
A56: 872.48 | B56: 0.87248 | C56: 18750 | D56: 18.75 | E56: 1960 | F56: 3920 | G56: 3.92 | H56: 23.54248 | I56: 22561.06849 | J56: 22.56106849
A57: 872.48 | B57: 0.87248 | C57: 18750 | D57: 18.75 | E57: 2720 | F57: 5440 | G57: 5.44 | H57: 25.06248 | I57: 24629.45607 | J57: 24.62945607
A58: 872.48 | B58: 0.87248 | C58: 18750 | D58: 18.75 | E58: 2570 | F58: 5140 | G58: 5.14 | H58: 24.76248 | I58: 18817.61169 | J58: 18.81761169
A59: 872.48 | B59: 0.87248 | C59: 18750 | D59: 18.75 | E59: 2650 | F59: 5300 | G59: 5.3 | H59: 24.92248 | I59: 18601.92575 | J59: 18.60192575
A60: 872.48 | B60: 0.87248 | C60: 18750 | D60: 18.75 | E60: 2300 | F60: 4600 | G60: 4.6 | H60: 24.22248 | I60: 16638.35974 | J60: 16.63835974
A61: 872.48 | B61: 0.87248 | C61: 18750 | D61: 18.75 | E61: 2650 | F61: 5300 | G61: 5.3 | H61: 24.92248 | I61: 18141.84765 | J61: 18.14184765
A62: 872.48 | B62: 0.87248 | C62: 18750 | D62: 18.75 | E62: 2340 | F62: 4680 | G62: 4.68 | H62: 24.30248 | I62: 19239.52695 | J62: 19.23952695
A63: 872.48 | B63: 0.87248 | C63: 18750 | D63: 18.75 | E63: 2610 | F63: 5220 | G63: 5.22 | H63: 24.84248 | I63: 18994.73543 | J63: 18.99473543
A64: 872.48 | B64: 0.87248 | C64: 18750 | D64: 18.75 | E64: 2520 | F64: 5040 | G64: 5.04 | H64: 24.66248 | I64: 17969.82532 | J64: 17.96982532
A65: 872.48 | B65: 0.87248 | C65: 18750 | D65: 18.75 | E65: 2480 | F65: 4960 | G65: 4.96 | H65: 24.58248 | I65: 16468.98493 | J65: 16.46898493
A66: 872.48 | B66: 0.87248 | C66: 18750 | D66: 18.75 | E66: 2450 | F66: 4900 | G66: 4.9 | H66: 24.52248 | I66: 16770.72303 | J66: 16.77072303
A67: 872.48 | B67: =A67/1000 -> 0.87248 | C67: 18750 | D67: =C67/1000 -> 18.75 | E67: 2470 | F67: =E67*2 -> 4940 | G67: =F67/1000 -> 4.94 | H67: =B67+D67+G67 -> 24.56248 | I67: 16901.79637 | J67: =I67/1000 -> 16.90179637
A68: 872.48 | B68: 0.87248 | C68: 18750 | D68: 18.75 | E68: 2490 | F68: 4980 | G68: 4.98 | H68: 24.60248 | I68: 17167.16044 | J68: 17.16716044
A69: 872.48 | B69: 0.87248 | C69: 18750 | D69: 18.75 | E69: 2410 | F69: 4820 | G69: 4.82 | H69: 24.44248 | I69: 17042.34087 | J69: 17.04234087
A70: 872.48 | B70: 0.87248 | C70: 18750 | D70: 18.75 | E70: 2620 | F70: 5240 | G70: 5.24 | H70: 24.86248 | I70: 17365.12034 | J70: 17.36512034
A71: 872.48 | B71: 0.87248 | C71: 18750 | D71: 18.75 | E71: 2490 | F71: 4980 | G71: 4.98 | H71: 24.60248 | I71: 17656.58588 | J71: 17.65658588
A72: 872.48 | B72: 0.87248 | C72: 18750 | D72: 18.75 | E72: 2380 | F72: 4760 | G72: 4.76 | H72: 24.38248 | I72: 17511.22377 | J72: 17.51122377
A73: 872.48 | B73: 0.87248 | C73: 18750 | D73: 18.75 | E73: 2460 | F73: 4920 | G73: 4.92 | H73: 24.54248 | I73: 17281.08119 | J73: 17.28108119
A74: 872.48 | B74: 0.87248 | C74: 18750 | D74: 18.75 | E74: 2570 | F74: 5140 | G74: 5.14 | H74: 24.76248 | I74: 17137.69649 | J74: 17.13769649
A75: 872.48 | B75: 0.87248 | C75: 18750 | D75: 18.75 | E75: 2400 | F75: 4800 | G75: 4.8 | H75: 24.42248 | I75: 15822.85958 | J75: 15.82285958
A76: 872.48 | B76: 0.87248 | C76: 18750 | D76: 18.75 | E76: 2500 | F76: 5000 | G76: 5 | H76: 24.62248 | I76: 15600.01842 | J76: 15.60001842
A77: 872.48 | B77: 0.87248 | C77: 18750 | D77: 18.75 | E77: 2520 | F77: 5040 | G77: 5.04 | H77: 24.66248 | I77: 16534.99274 | J77: 16.53499274
A78: 872.48 | B78: 0.87248 | C78: 18750 | D78: 18.75 | E78: 2390 | F78: 4780 | G78: 4.78 | H78: 24.40248 | I78: 15836.52607 | J78: 15.83652607
A79: 872.48 | B79: 0.87248 | C79: 18750 | D79: 18.75 | E79: 1510 | F79: 3020 | G79: 3.02 | H79: 22.64248 | I79: 15968.9081 | J79: 15.9689081
A80: 872.48 | B80: 0.87248 | C80: 18750 | D80: 18.75 | E80: 1000 | F80: 2000 | G80: 2 | H80: 21.62248 | I80: 16369.40183 | J80: 16.36940183
A81: 872.48 | B81: 0.87248 | C81: 18750 | D81: 18.75 | E81: 260 | F81: 520 | G81: 0.52 | H81: 20.14248 | I81: 17081.29866 | J81: 17.08129866
A82: 872.48 | B82: 0.87248 | C82: 18750 | D82: 18.75 | E82: 400 | F82: 800 | G82: 0.8 | H82: 20.42248 | I82: 17708.39249 | J82: 17.70839249
A83: 872.48 | B83: 0.87248 | C83: 18750 | D83: 18.75 | E83: 490 | F83: 980 | G83: 0.98 | H83: 20.60248 | I83: 17184.78917 | J83: 17.18478917
A84: 872.48 | B84: 0.87248 | C84: 18750 | D84: 18.75 | E84: 1390 | F84: 2780 | G84: 2.78 | H84: 22.40248 | I84: 17157.33789 | J84: 17.15733789
A85: 872.48 | B85: 0.87248 | C85: 18750 | D85: 18.75 | E85: 1300 | F85: 2600 | G85: 2.6 | H85: 22.22248 | I85: 17042.83089 | J85: 17.04283089
A86: 872.48 | B86: 0.87248 | C86: 18750 | D86: 18.75 | E86: 530 | F86: 1060 | G86: 1.06 | H86: 20.68248 | I86: 16799.49186 | J86: 16.79949186
A87: 872.48 | B87: 0.87248 | C87: 18750 | D87: 18.75 | E87: 420 | F87: 840 | G87: 0.84 | H87: 20.46248 | I87: 16456.30497 | J87: 16.45630497
A88: 872.48 | B88: 0.87248 | C88: 18750 | D88: 18.75 | E88: 60 | F88: 120 | G88: 0.12 | H88: 19.74248 | I88: 17213.03449 | J88: 17.21303449
A89: 872.48 | B89: 0.87248 | C89: 18750 | D89: 18.75 | E89: 80 | F89: 160 | G89: 0.16 | H89: 19.78248 | I89: 17165.32798 | J89: 17.16532798
A90: 872.48 | B90: 0.87248 | C90: 18750 | D90: 18.75 | E90: 300 | F90: 600 | G90: 0.6 | H90: 20.22248 | I90: 16695.37762 | J90: 16.69537762
A91: 872.48 | B91: 0.87248 | C91: 18750 | D91: 18.75 | E91: 470 | F91: 940 | G91: 0.94 | H91: 20.56248 | I91: 16381.73444 | J91: 16.38173444
A92: 872.48 | B92: 0.87248 | C92: 18750 | D92: 18.75 | E92: 390 | F92: 780 | G92: 0.78 | H92: 20.40248 | I92: 16341.45156 | J92: 16.34145156
A93: 872.48 | B93: 0.87248 | C93: 18750 | D93: 18.75 | E93: 280 | F93: 560 | G93: 0.56 | H93: 20.18248 | I93: 16231.40967 | J93: 16.23140967
A94: 872.48 | B94: 0.87248 | C94: 18750 | D94: 18.75 | E94: 360 | F94: 720 | G94: 0.72 | H94: 20.34248 | I94: 16840.10222 | J94: 16.84010222
A95: 872.48 | B95: 0.87248 | C95: 18750 | D95: 18.75 | E95: 510 | F95: 1020 | G95: 1.02 | H95: 20.64248 | I95: 18644.47951 | J95: 18.64447951
A96: 872.48 | B96: 0.87248 | C96: 18750 | D96: 18.75 | E96: 760 | F96: 1520 | G96: 1.52 | H96: 21.14248 | I96: 18889.71101 | J96: 18.88971101
A97: 872.48 | B97: 0.87248 | C97: 18750 | D97: 18.75 | E97: 700 | F97: 1400 | G97: 1.4 | H97: 21.02248 | I97: 19132.9088 | J97: 19.1329088
A98: 872.48 | B98: 0.87248 | C98: 18750 | D98: 18.75 | E98: 470 | F98: 940 | G98: 0.94 | H98: 20.56248 | I98: 18014.9644 | J98: 18.0149644
A99: 872.48 | B99: 0.87248 | C99: 18750 | D99: 18.75 | E99: 450 | F99: 900 | G99: 0.9 | H99: 20.52248 | I99: 18042.21437 | J99: 18.04221437
A100: 872.48 | B100: 0.87248 | C100: 18750 | D100: 18.75 | E100: 830 | F100: 1660 | G100: 1.66 | H100: 21.28248 | I100: 18618.83931 | J100: 18.61883931
A101: 872.48 | B101: 0.87248 | C101: 18750 | D101: 18.75 | E101: 510 | F101: 1020 | G101: 1.02 | H101: 20.64248 | I101: 18317.56751 | J101: 18.31756751
A102: 872.48 | B102: 0.87248 | C102: 18750 | D102: 18.75 | E102: 500 | F102: 1000 | G102: 1 | H102: 20.62248 | I102: 18054.97591 | J102: 18.05497591
A103: 872.48 | B103: 0.87248 | C103: 18750 | D103: 18.75 | E103: 600 | F103: 1200 | G103: 1.2 | H103: 20.82248 | I103: 18176.41415 | J103: 18.17641415
A104: 872.48 | B104: 0.87248 | C104: 18750 | D104: 18.75 | E104: 570 | F104: 1140 | G104: 1.14 | H104: 20.76248 | I104: 17267.09856 | J104: 17.26709856
A105: 872.48 | B105: 0.87248 | C105: 18750 | D105: 18.75 | E105: 310 | F105: 620 | G105: 0.62 | H105: 20.24248 | I105: 17061.18858 | J105: 17.06118858
A106: 872.48 | B106: 0.87248 | C106: 18750 | D106: 18.75 | E106: 460 | F106: 920 | G106: 0.92 | H106: 20.54248 | I106: 17096.3725 | J106: 17.0963725
A107: 872.48 | B107: 0.87248 | C107: 18750 | D107: 18.75 | E107: 310 | F107: 620 | G107: 0.62 | H107: 20.24248 | I107: 19054.38954 | J107: 19.05438954
A108: 872.48 | B108: 0.87248 | C108: 18750 | D108: 18.75 | E108: 390 | F108: 780 | G108: 0.78 | H108: 20.40248 | I108: 19528.31107 | J108: 19.52831107
A109: 872.48 | B109: 0.87248 | C109: 18750 | D109: 18.75 | E109: 380 | F109: 760 | G109: 0.76 | H109: 20.38248 | I109: 19742.51752 | J109: 19.74251752
A110: 872.48 | B110: 0.87248 | C110: 18750 | D110: 18.75 | E110: 750 | F110: 1500 | G110: 1.5 | H110: 21.12248 | I110: 19233.61184 | J110: 19.23361184
A111: 872.48 | B111: 0.87248 | C111: 18750 | D111: 18.75 | E111: 1020 | F111: 2040 | G111: 2.04 | H111: 21.66248 | I111: 18211.82194 | J111: 18.21182194
A112: 872.48 | B112: 0.87248 | C112: 18750 | D112: 18.75 | E112: 1450 | F112: 2900 | G112: 2.9 | H112: 22.52248 | I112: 18350.33266 | J112: 18.35033266
A113: 872.48 | B113: 0.87248 | C113: 18750 | D113: 18.75 | E113: 1940 | F113: 3880 | G113: 3.88 | H113: 23.50248 | I113: 18212.25061 | J113: 18.21225061
A114: 872.48 | B114: 0.87248 | C114: 18750 | D114: 18.75 | E114: 2290 | F114: 4580 | G114: 4.58 | H114: 24.20248 | I114: 18898.02857 | J114: 18.89802857
A115: 872.48 | B115: 0.87248 | C115: 18750 | D115: 18.75 | E115: 2510 | F115: 5020 | G115: 5.02 | H115: 24.64248 | I115: 19400.43162 | J115: 19.40043162
A116: 872.48 | B116: 0.87248 | C116: 18750 | D116: 18.75 | E116: 1830 | F116: 3660 | G116: 3.66 | H116: 23.28248 | I116: 14356.56022 | J116: 14.35656022
A117: 872.48 | B117: 0.87248 | C117: 18750 | D117: 18.75 | E117: 2270 | F117: 4540 | G117: 4.54 | H117: 24.16248 | I117: 13937.78168 | J117: 13.93778168
A118: 872.48 | B118: 0.87248 | C118: 18750 | D118: 18.75 | E118: 1740 | F118: 3480 | G118: 3.48 | H118: 23.10248 | I118: 14505.69399 | J118: 14.50569399
A119: 872.48 | B119: 0.87248 | C119: 18750 | D119: 18.75 | E119: 460 | F119: 920 | G119: 0.92 | H119: 20.54248 | I119: 15019.43101 | J119: 15.01943101
A120: 872.48 | B120: 0.87248 | C120: 18750 | D120: 18.75 | E120: 680 | F120: 1360 | G120: 1.36 | H120: 20.98248 | I120: 17634.92073 | J120: 17.63492073
A121: 872.48 | B121: 0.87248 | C121: 18750 | D121: 18.75 | E121: 1490 | F121: 2980 | G121: 2.98 | H121: 22.60248 | I121: 17794.73175 | J121: 17.79473175
A122: 872.48 | B122: 0.87248 | C122: 18750 | D122: 18.75 | E122: 1660 | F122: 3320 | G122: 3.32 | H122: 22.94248 | I122: 17396.85552 | J122: 17.39685552
A123: 872.48 | B123: 0.87248 | C123: 18750 | D123: 18.75 | E123: 1930 | F123: 3860 | G123: 3.86 | H123: 23.48248 | I123: 17498.66743 | J123: 17.49866743
A124: 872.48 | B124: 0.87248 | C124: 18750 | D124: 18.75 | E124: 1430 | F124: 2860 | G124: 2.86 | H124: 22.48248 | I124: 17232.77077 | J124: 17.23277077
A125: 872.48 | B125: 0.87248 | C125: 18750 | D125: 18.75 | E125: 1280 | F125: 2560 | G125: 2.56 | H125: 22.18248 | I125: 17943.93146 | J125: 17.94393146
A126: 872.48 | B126: 0.87248 | C126: 18750 | D126: 18.75 | E126: 770 | F126: 1540 | G126: 1.54 | H126: 21.16248 | I126: 17573.10294 | J126: 17.57310294
A127: 872.48 | B127: 0.87248 | C127: 18750 | D127: 18.75 | E127: 780 | F127: 1560 | G127: 1.56 | H127: 21.18248 | I127: 17162.4604 | J127: 17.1624604
A128: 872.48 | B128: 0.87248 | C128: 18750 | D128: 18.75 | E128: 1440 | F128: 2880 | G128: 2.88 | H128: 22.50248 | I128: 16670.56988 | J128: 16.67056988
A129: 872.48 | B129: 0.87248 | C129: 18750 | D129: 18.75 | E129: 2400 | F129: 4800 | G129: 4.8 | H129: 24.42248 | I129: 16576.07323 | J129: 16.57607323
A130: 872.48 | B130: 0.87248 | C130: 18750 | D130: 18.75 | E130: 2400 | F130: 4800 | G130: 4.8 | H130: 24.42248 | I130: 18669.25842 | J130: 18.66925842
A131: 872.48 | B131: =A131/1000 -> 0.87248 | C131: 18750 | D131: =C131/1000 -> 18.75 | E131: 2470 | F131: =E131*2 -> 4940 | G131: =F131/1000 -> 4.94 | H131: =B131+D131+G131 -> 24.56248 | I131: 19016.91803 | J131: =I131/1000 -> 19.01691803
A132: 872.48 | B132: 0.87248 | C132: 18750 | D132: 18.75 | E132: 2140 | F132: 4280 | G132: 4.28 | H132: 23.90248 | I132: 19593.09272 | J132: 19.59309272
A133: 872.48 | B133: 0.87248 | C133: 18750 | D133: 18.75 | E133: 2580 | F133: 5160 | G133: 5.16 | H133: 24.78248 | I133: 19889.10572 | J133: 19.88910572
A134: 872.48 | B134: 0.87248 | C134: 18750 | D134: 18.75 | E134: 1920 | F134: 3840 | G134: 3.84 | H134: 23.46248 | I134: 19711.02729 | J134: 19.71102729
A135: 872.48 | B135: 0.87248 | C135: 18750 | D135: 18.75 | E135: 2940 | F135: 5880 | G135: 5.88 | H135: 25.50248 | I135: 19400.19788 | J135: 19.40019788
A136: 872.48 | B136: 0.87248 | C136: 18750 | D136: 18.75 | E136: 2110 | F136: 4220 | G136: 4.22 | H136: 23.84248 | I136: 17373.05789 | J136: 17.37305789
A137: 872.48 | B137: 0.87248 | C137: 18750 | D137: 18.75 | E137: 2760 | F137: 5520 | G137: 5.52 | H137: 25.14248 | I137: 17287.56369 | J137: 17.28756369
A138: 872.48 | B138: 0.87248 | C138: 18750 | D138: 18.75 | E138: 2250 | F138: 4500 | G138: 4.5 | H138: 24.12248 | I138: 17169.70425 | J138: 17.16970425
A139: 872.48 | B139: 0.87248 | C139: 18750 | D139: 18.75 | E139: 2370 | F139: 4740 | G139: 4.74 | H139: 24.36248 | I139: 17297.52384 | J139: 17.29752384
A140: 872.48 | B140: 0.87248 | C140: 18750 | D140: 18.75 | E140: 2390 | F140: 4780 | G140: 4.78 | H140: 24.40248 | I140: 17117.6464 | J140: 17.1176464
A141: 872.48 | B141: 0.87248 | C141: 18750 | D141: 18.75 | E141: 2190 | F141: 4380 | G141: 4.38 | H141: 24.00248 | I141: 16925.48272 | J141: 16.92548272
A142: 872.48 | B142: 0.87248 | C142: 18750 | D142: 18.75 | E142: 2540 | F142: 5080 | G142: 5.08 | H142: 24.70248 | I142: 17079.68237 | J142: 17.07968237
A143: 872.48 | B143: 0.87248 | C143: 18750 | D143: 18.75 | E143: 2450 | F143: 4900 | G143: 4.9 | H143: 24.52248 | I143: 17098.3475 | J143: 17.0983475
A144: 872.48 | B144: 0.87248 | C144: 18750 | D144: 18.75 | E144: 2360 | F144: 4720 | G144: 4.72 | H144: 24.34248 | I144: 17103.53995 | J144: 17.10353995
A145: 872.48 | B145: 0.87248 | C145: 18750 | D145: 18.75 | E145: 2670 | F145: 5340 | G145: 5.34 | H145: 24.96248 | I145: 17752.20779 | J145: 17.75220779
A146: 872.48 | B146: 0.87248 | C146: 18750 | D146: 18.75 | E146: 2230 | F146: 4460 | G146: 4.46 | H146: 24.08248 | I146: 17700.65992 | J146: 17.70065992
A147: 872.48 | B147: 0.87248 | C147: 18750 | D147: 18.75 | E147: 2650 | F147: 5300 | G147: 5.3 | H147: 24.92248 | I147: 18003.91918 | J147: 18.00391918
A148: 872.48 | B148: 0.87248 | C148: 18750 | D148: 18.75 | E148: 2450 | F148: 4900 | G148: 4.9 | H148: 24.52248 | I148: 18179.36535 | J148: 18.17936535
A149: 872.48 | B149: 0.87248 | C149: 18750 | D149: 18.75 | E149: 2360 | F149: 4720 | G149: 4.72 | H149: 24.34248 | I149: 18025.32697 | J149: 18.02532697
A150: 872.48 | B150: 0.87248 | C150: 18750 | D150: 18.75 | E150: 2610 | F150: 5220 | G150: 5.22 | H150: 24.84248 | I150: 18281.50851 | J150: 18.28150851
A151: 872.48 | B151: 0.87248 | C151: 18750 | D151: 18.75 | E151: 2550 | F151: 5100 | G151: 5.1 | H151: 24.72248 | I151: 18045.66203 | J151: 18.04566203
A152: 872.48 | B152: 0.87248 | C152: 18750 | D152: 18.75 | E152: 2450 | F152: 4900 | G152: 4.9 | H152: 24.52248 | I152: 17702.89621 | J152: 17.70289621
A153: 872.48 | B153: 0.87248 | C153: 18750 | D153: 18.75 | E153: 2530 | F153: 5060 | G153: 5.06 | H153: 24.68248 | I153: 17709.06515 | J153: 17.70906515
A154: 872.48 | B154: 0.87248 | C154: 18750 | D154: 18.75 | E154: 2470 | F154: 4940 | G154: 4.94 | H154: 24.56248 | I154: 17912.18884 | J154: 17.91218884
A155: 872.48 | B155: 0.87248 | C155: 18750 | D155: 18.75 | E155: 2270 | F155: 4540 | G155: 4.54 | H155: 24.16248 | I155: 18847.86825 | J155: 18.84786825
A156: 872.48 | B156: 0.87248 | C156: 18750 | D156: 18.75 | E156: 2340 | F156: 4680 | G156: 4.68 | H156: 24.30248 | I156: 17956.49653 | J156: 17.95649653
A157: 872.48 | B157: 0.87248 | C157: 18750 | D157: 18.75 | E157: 2230 | F157: 4460 | G157: 4.46 | H157: 24.08248 | I157: 18027.1207 | J157: 18.0271207
A158: 872.48 | B158: 0.87248 | C158: 18750 | D158: 18.75 | E158: 2480 | F158: 4960 | G158: 4.96 | H158: 24.58248 | I158: 17948.04277 | J158: 17.94804277
A159: 872.48 | B159: 0.87248 | C159: 18750 | D159: 18.75 | E159: 2380 | F159: 4760 | G159: 4.76 | H159: 24.38248 | I159: 15204.21751 | J159: 15.20421751
A160: 872.48 | B160: 0.87248 | C160: 18750 | D160: 18.75 | E160: 2150 | F160: 4300 | G160: 4.3 | H160: 23.92248 | I160: 18163.05023 | J160: 18.16305023
A161: 872.48 | B161: 0.87248 | C161: 18750 | D161: 18.75 | E161: 2340 | F161: 4680 | G161: 4.68 | H161: 24.30248 | I161: 18235.86945 | J161: 18.23586945
A162: 872.48 | B162: 0.87248 | C162: 18750 | D162: 18.75 | E162: 2380 | F162: 4760 | G162: 4.76 | H162: 24.38248 | I162: 18874.98603 | J162: 18.87498603
A163: 872.48 | B163: 0.87248 | C163: 18750 | D163: 18.75 | E163: 2280 | F163: 4560 | G163: 4.56 | H163: 24.18248 | I163: 20105.61107 | J163: 20.10561107
A164: 872.48 | B164: 0.87248 | C164: 18750 | D164: 18.75 | E164: 2310 | F164: 4620 | G164: 4.62 | H164: 24.24248 | I164: 20900.77583 | J164: 20.90077583
A165: 872.48 | B165: 0.87248 | C165: 18750 | D165: 18.75 | E165: 2180 | F165: 4360 | G165: 4.36 | H165: 23.98248 | I165: 20845.60043 | J165: 20.84560043
A166: 872.48 | B166: 0.87248 | C166: 18750 | D166: 18.75 | E166: 2570 | F166: 5140 | G166: 5.14 | H166: 24.76248 | I166: 20035.21798 | J166: 20.03521798
A167: 872.48 | B167: 0.87248 | C167: 18750 | D167: 18.75 | E167: 2300 | F167: 4600 | G167: 4.6 | H167: 24.22248 | I167: 18587.94909 | J167: 18.58794909
A168: 872.48 | B168: 0.87248 | C168: 18750 | D168: 18.75 | E168: 1870 | F168: 3740 | G168: 3.74 | H168: 23.36248 | I168: 18637.35574 | J168: 18.63735574
A169: 872.48 | B169: 0.87248 | C169: 18750 | D169: 18.75 | E169: 1940 | F169: 3880 | G169: 3.88 | H169: 23.50248 | I169: 18560.64154 | J169: 18.56064154
A170: 872.48 | B170: 0.87248 | C170: 18750 | D170: 18.75 | E170: 2640 | F170: 5280 | G170: 5.28 | H170: 24.90248 | I170: 18436.4257 | J170: 18.4364257
A171: 872.48 | B171: 0.87248 | C171: 18750 | D171: 18.75 | E171: 2390 | F171: 4780 | G171: 4.78 | H171: 24.40248 | I171: 18563.06651 | J171: 18.56306651
A172: 872.48 | B172: 0.87248 | C172: 18750 | D172: 18.75 | E172: 2580 | F172: 5160 | G172: 5.16 | H172: 24.78248 | I172: 18658.16585 | J172: 18.65816585
A173: 872.48 | B173: 0.87248 | C173: 18750 | D173: 18.75 | E173: 2260 | F173: 4520 | G173: 4.52 | H173: 24.14248 | I173: 18665.04081 | J173: 18.66504081
A174: 872.48 | B174: 0.87248 | C174: 18750 | D174: 18.75 | E174: 2580 | F174: 5160 | G174: 5.16 | H174: 24.78248 | I174: 18782.45284 | J174: 18.78245284
A175: 872.48 | B175: 0.87248 | C175: 18750 | D175: 18.75 | E175: 2220 | F175: 4440 | G175: 4.44 | H175: 24.06248 | I175: 18875.13849 | J175: 18.87513849
A176: 872.48 | B176: 0.87248 | C176: 18750 | D176: 18.75 | E176: 1220 | F176: 2440 | G176: 2.44 | H176: 22.06248 | I176: 19215.70431 | J176: 19.21570431
A177: 872.48 | B177: 0.87248 | C177: 18750 | D177: 18.75 | E177: 1030 | F177: 2060 | G177: 2.06 | H177: 21.68248 | I177: 19413.16066 | J177: 19.41316066
A178: 872.48 | B178: 0.87248 | C178: 18750 | D178: 18.75 | E178: 1470 | F178: 2940 | G178: 2.94 | H178: 22.56248 | I178: 18361.53428 | J178: 18.36153428
A179: 872.48 | B179: 0.87248 | C179: 18750 | D179: 18.75 | E179: 1360 | F179: 2720 | G179: 2.72 | H179: 22.34248 | I179: 17399.41979 | J179: 17.39941979
A180: 872.48 | B180: 0.87248 | C180: 18750 | D180: 18.75 | E180: 1840 | F180: 3680 | G180: 3.68 | H180: 23.30248 | I180: 17641.14269 | J180: 17.64114269
A181: 872.48 | B181: 0.87248 | C181: 18750 | D181: 18.75 | E181: 1860 | F181: 3720 | G181: 3.72 | H181: 23.34248 | I181: 17773.91871 | J181: 17.77391871
A182: 872.48 | B182: 0.87248 | C182: 18750 | D182: 18.75 | E182: 2190 | F182: 4380 | G182: 4.38 | H182: 24.00248 | I182: 18209.50909 | J182: 18.20950909
A183: 872.48 | B183: 0.87248 | C183: 18750 | D183: 18.75 | E183: 1720 | F183: 3440 | G183: 3.44 | H183: 23.06248 | I183: 18661.86947 | J183: 18.66186947
A184: 872.48 | B184: 0.87248 | C184: 18750 | D184: 18.75 | E184: 1410 | F184: 2820 | G184: 2.82 | H184: 22.44248 | I184: 18719.69206 | J184: 18.71969206
A185: 872.48 | B185: 0.87248 | C185: 18750 | D185: 18.75 | E185: 1130 | F185: 2260 | G185: 2.26 | H185: 21.88248 | I185: 19173.67899 | J185: 19.17367899
A186: 872.48 | B186: 0.87248 | C186: 18750 | D186: 18.75 | E186: 1620 | F186: 3240 | G186: 3.24 | H186: 22.86248 | I186: 18876.13851 | J186: 18.87613851
A187: 872.48 | B187: 0.87248 | C187: 18750 | D187: 18.75 | E187: 1370 | F187: 2740 | G187: 2.74 | H187: 22.36248 | I187: 19045.72564 | J187: 19.04572564
A188: 872.48 | B188: 0.87248 | C188: 18750 | D188: 18.75 | E188: 470 | F188: 940 | G188: 0.94 | H188: 20.56248 | I188: 19172.05766 | J188: 19.17205766
A189: 872.48 | B189: 0.87248 | C189: 18750 | D189: 18.75 | E189: 370 | F189: 740 | G189: 0.74 | H189: 20.36248 | I189: 19285.59712 | J189: 19.28559712
A190: 872.48 | B190: 0.87248 | C190: 18750 | D190: 18.75 | E190: 200 | F190: 400 | G190: 0.4 | H190: 20.02248 | I190: 19324.66115 | J190: 19.32466115
A191: 872.48 | B191: 0.87248 | C191: 18750 | D191: 18.75 | E191: 120 | F191: 240 | G191: 0.24 | H191: 19.86248 | I191: 19293.6221 | J191: 19.2936221
A192: 872.48 | B192: 0.87248 | C192: 18750 | D192: 18.75 | E192: 30 | F192: 60 | G192: 0.06 | H192: 19.68248 | I192: 19460.06444 | J192: 19.46006444
A193: 872.48 | B193: 0.87248 | C193: 18750 | D193: 18.75 | E193: 0 | F193: 0 | G193: 0 | H193: 19.62248 | I193: 19193.29538 | J193: 19.19329538
A194: 872.48 | B194: 0.87248 | C194: 18750 | D194: 18.75 | E194: 0 | F194: 0 | G194: 0 | H194: 19.62248 | I194: 19858.06063 | J194: 19.85806063
A195: 872.48 | B195: =A195/1000 -> 0.87248 | C195: 18750 | D195: =C195/1000 -> 18.75 | E195: 0 | F195: =E195*2 -> 0 | G195: =F195/1000 -> 0 | H195: =B195+D195+G195 -> 19.62248 | I195: 21428.66151 | J195: =I195/1000 -> 21.42866151
A196: 872.48 | B196: 0.87248 | C196: 18750 | D196: 18.75 | E196: 0 | F196: 0 | G196: 0 | H196: 19.62248 | I196: 19712.10102 | J196: 19.71210102
A197: 872.48 | B197: 0.87248 | C197: 18750 | D197: 18.75 | E197: 0 | F197: 0 | G197: 0 | H197: 19.62248 | I197: 21409.10265 | J197: 21.40910265
A198: 872.48 | B198: 0.87248 | C198: 18750 | D198: 18.75 | E198: 0 | F198: 0 | G198: 0 | H198: 19.62248 | I198: 22164.97729 | J198: 22.16497729
A199: 872.48 | B199: 0.87248 | C199: 18750 | D199: 18.75 | E199: 0 | F199: 0 | G199: 0 | H199: 19.62248 | I199: 22198.14126 | J199: 22.19814126
A200: 872.48 | B200: 0.87248 | C200: 18750 | D200: 18.75 | E200: 0 | F200: 0 | G200: 0 | H200: 19.62248 | I200: 22092.49182 | J200: 22.09249182
... 8561 more rows

Sheet Net Import Export
A1: LAES
B2: Storage Characteristics
A3: Round-trip efficiency | B3: 0.55
A4: Self discharge (hours) | B4: 0.99
A5: Charging rate (kW/hour) | B5: 30000
A6: Discharging rate (kW/hour) | B6: 30000
A8: Capacity (MWh) | B8: % Hours of Autonomy over ayer | C8: Net Import/Export (£)
A9: No Storage | B9: 0.4873 | C9: -360891
A10: 2.5 | B10: 0.5547 | C10: -362910
A11: 5 | B11: 0.5756 | C11: -369718
A12: 10 | B12: 0.6002 | C12: -382611
A13: 20 | B13: 0.6252 | C13: -406761
A14: 50 | B14: 0.6626 | C14: -471179
A15: 100 | B15: 0.6857 | C15: -559223
A16: 200 | B16: 0.7032 | C16: -676281
A17: 500 | B17: 0.7075 | C17: -740793
A18: 1000 | B18: 0.7075 | C18: -740793
A20: Electrochemical batteries
B21: Storage Characteristics
A22: Round-trip efficiency | B22: 0.7
A23: Self discharge (hours) | B23: 0.997
A24: Charging rate (kW/hour) | B24: 20000
A25: Discharging rate (kW/hour) | B25: 20000
A27: Capacity (kWh) | B27: % Hours of Autonomy over a year | C27: Net Import/Export (£)
A28: No Storage | B28: 0.4873 | C28: -360891
A29: 2.5 | B29: 0.5579271773 | C29: -354659
A30: 5 | B30: 0.5808697637 | C30: -354530
A31: 10 | B31: 0.6080356124 | C31: -355558
A32: 20 | B32: 0.6383974432 | C32: -359382
A33: 50 | B33: 0.6846250428 | C33: -374039
A34: 100 | B34: 0.7209222691 | C34: -400307
A35: 200 | B35: 0.761100331 | C35: -460417
A36: 500 | B36: 0.7952288552 | C36: -578864
A37: 1000 | B37: 0.7972834151 | C37: -614325
A39: Flow batteries
B40: Storage Characteristics
A41: Round-trip efficiency | B41: 0.8
A42: Self discharge (hours) | B42: 0.999
A43: Charging rate (kW/hour) | B43: 3000
A44: Discharging rate (kW/hour) | B44: 3000
A46: Capacity (kWh) | B46: % Hours of Autonomy over a year | C46: Net Import/Export (£)
A47: No Storage | B47: 0.4873 | C47: -360891
A48: 2.5 | B48: 0.5604 | C48: -350807
A49: 5 | B49: 0.5834 | C49: -347123
A50: 10 | B50: 0.6131 | C50: -342506
A51: 20 | B51: 0.6432 | C51: -337030
A52: 50 | B52: 0.6879 | C52: -330024
A53: 100 | B53: 0.7275 | C53: -328575
A54: 200 | B54: 0.7699 | C54: -340178
A55: 500 | B55: 0.8106 | C55: -387777
A56: 1000 | B56: 0.8142 | C56: -401750
